Workbook

Sheet Eingabe
I2: Messsystemanalyse Verfahren 7 attributive Merkmale (Bosch Heft Nr. 10 / AIAG)
B6: Teil | C6: Prüfergebnisse | I6: Referenz | J6: Ref. Wert | K6: Code
C7: A-1 | D7: A-2 | E7: A-3 | F7: A-4 | G7: A-5 | H7: A-6 | N7: Merkmal | U7: Messmittel
B8: 1 | C8: 1 | D8: 1 | E8: 1 | F8: 1 | G8: 1 | H8: 1 | I8: 1 | K8: =IF(C8<>"",IF(SUM(C8:H8)=COUNT(C8:H8),"+",IF(SUM(C8:H8)=0,"-","x")),"") -> + | N8: Bezeichnung | U8: Name
B9: =B8+1 -> 2 | C9: 1 | D9: 1 | E9: 1 | F9: 1 | G9: 1 | H9: 1 | I9: 1 | K9: =IF(C9<>"",IF(SUM(C9:H9)=COUNT(C9:H9),"+",IF(SUM(C9:H9)=0,"-","x")),"") -> + | N9: Merkmalsnummer | U9: Nummer
B10: 3 | C10: 0 | D10: 0 | E10: 0 | F10: 0 | G10: 0 | H10: 0 | I10: 0 | K10: - | N10: Masseinheit | U10: Standort
B11: 4 | C11: 0 | D11: 0 | E11: 0 | F11: 0 | G11: 0 | H11: 0 | I11: 0 | K11: - | N11: Zeichnungsnummer | U11: Kalibrierschein
B12: 5 | C12: 0 | D12: 0 | E12: 0 | F12: 0 | G12: 0 | H12: 0 | I12: 0 | K12: - | N12: Änderungsstand
B13: 6 | C13: 1 | D13: 1 | E13: 0 | F13: 1 | G13: 1 | H13: 0 | I13: 1 | K13: x | U13: Bewertung Ergebnis / Fleiss Kappa
B14: 7 | C14: 1 | D14: 1 | E14: 1 | F14: 1 | G14: 1 | H14: 1 | I14: 1 | K14: + | N14: Text 1 | U14: Ergebnis <= | X14: 0.8 | Y14: 0.95 | Z14: 1
B15: 8 | C15: 1 | D15: 1 | E15: 1 | F15: 1 | G15: 1 | H15: 1 | I15: 1 | K15: + | N15: Text 2 | U15: Fleiss Kappa <= | X15: 0.8 | Y15: 0.95 | Z15: 1
B16: 9 | C16: 0 | D16: 0 | E16: 0 | F16: 0 | G16: 0 | H16: 0 | I16: 0 | K16: - | N16: Text 3 | U16: Spezifikation
B17: 10 | C17: 1 | D17: 1 | E17: 1 | F17: 1 | G17: 1 | H17: 1 | I17: 1 | K17: + | N17: Prüfdatum | U17: Untere Spez.-Grenze
B18: 11 | C18: 1 | D18: 1 | E18: 1 | F18: 1 | G18: 1 | H18: 1 | I18: 1 | K18: + | N18: Prüfung durch | U18: Obere Spez.-Grenze
B19: 12 | C19: 0 | D19: 0 | E19: 0 | F19: 0 | G19: 0 | H19: 0 | I19: 0 | K19: - | N19: Prüfung durch Name | U19: Auflösung
B20: 13 | C20: 1 | D20: 1 | E20: 1 | F20: 1 | G20: 1 | H20: 1 | I20: 1 | K20: +
B21: 14 | C21: 1 | D21: 1 | E21: 0 | F21: 1 | G21: 1 | H21: 1 | I21: 1 | K21: x | N21: Anzahl Durchgänge | R21: =IF(C8<>"",COUNT(C8:H8),"") -> 6
B22: 15 | C22: 1 | D22: 1 | E22: 1 | F22: 1 | G22: 1 | H22: 1 | I22: 1 | K22: + | N22: Anzahl Teile | R22: =IF(C8<>"",COUNT(C8:C57),"") -> 30
B23: 16 | C23: 1 | D23: 1 | E23: 1 | F23: 1 | G23: 1 | H23: 1 | I23: 1 | K23: +
B24: 17 | C24: 1 | D24: 1 | E24: 1 | F24: 1 | G24: 1 | H24: 1 | I24: 1 | K24: + | N24: Geprüft gesamt | R24: =Berechnung!Y28 -> 30
B25: 18 | C25: 1 | D25: 1 | E25: 1 | F25: 1 | G25: 1 | H25: 1 | I25: 1 | K25: + | N25: Anzahl richtig | R25: =Berechnung!Y29 -> 24
B26: 19 | C26: 1 | D26: 1 | E26: 1 | F26: 1 | G26: 1 | H26: 1 | I26: 1 | K26: + | N26: 95% obere CI | R26: =Berechnung!Y30 -> 0.922864488
B27: 20 | C27: 1 | D27: 1 | E27: 1 | F27: 1 | G27: 1 | H27: 1 | I27: 1 | K27: + | N27: Ergebnis | R27: =Berechnung!Y31 -> 0.8
B28: 21 | C28: 1 | D28: 1 | E28: 0 | F28: 1 | G28: 0 | H28: 1 | I28: 1 | K28: x | N28: 95% untere CI | R28: =Berechnung!Y32 -> 0.614333489
B29: 22 | C29: 0 | D29: 0 | E29: 1 | F29: 0 | G29: 1 | H29: 0 | I29: 0 | K29: x | N29: Fleiss Kappa | R29: =Berechnung!Y33 -> 0.7957818182
B30: 23 | C30: 1 | D30: 1 | E30: 1 | F30: 1 | G30: 1 | H30: 1 | I30: 1 | K30: +
B31: 24 | C31: 1 | D31: 1 | E31: 1 | F31: 1 | G31: 1 | H31: 1 | I31: 1 | K31: +
B32: 25 | C32: 0 | D32: 0 | E32: 0 | F32: 0 | G32: 0 | H32: 0 | I32: 0 | K32: -
B33: 26 | C33: 0 | D33: 1 | E33: 0 | F33: 0 | G33: 0 | H33: 0 | I33: 0 | K33: x
B34: 27 | C34: 1 | D34: 1 | E34: 1 | F34: 1 | G34: 1 | H34: 1 | I34: 1 | K34: +
B35: 28 | C35: 1 | D35: 1 | E35: 1 | F35: 1 | G35: 1 | H35: 1 | I35: 1 | K35: +
B36: 29 | C36: 1 | D36: 1 | E36: 1 | F36: 1 | G36: 1 | H36: 1 | I36: 1 | K36: +
B37: 30 | C37: 0 | D37: 0 | E37: 0 | F37: 0 | G37: 0 | H37: 1 | I37: 0 | K37: x
B38: 31
B39: 32
B40: 33
B41: 34
B42: 35
B43: 36
B44: 37
B45: 38
B46: 39
B47: 40
B48: =B47+1 -> 41 | M48: Anmerkungen:
B49: =B48+1 -> 42 | M49: Nach Bosch Heft Nr. 10 Kapitel 5.2 sind bei Prüfautomaten die Teile durch
B50: 43 | M50: mindestens 6 Durchläufe zu prüfen.
B51: 44
B52: 45
B53: 46
B54: 47
B55: 48
B56: 49
B57: 50

Sheet Musterwerte Validierung Info
B1: Info | D1: roland.schnurr@sixsigmablackbelt.de
B2: Page | D2: www.sixsigmablackbelt.de
X4: Werte berechnet mit Minitab
A5: Teil | B5: A-1 | C5: A-2 | D5: A-3 | E5: A-4 | F5: A-5 | G5: A-6 | H5: Referenz
A6: 1 | B6: 1 | C6: 1 | D6: 1 | E6: 1 | F6: 1 | G6: 1 | H6: 1
A7: 2 | B7: 1 | C7: 1 | D7: 1 | E7: 1 | F7: 1 | G7: 1 | H7: 1
A8: 3 | B8: 0 | C8: 0 | D8: 0 | E8: 0 | F8: 0 | G8: 0 | H8: 0
A9: 4 | B9: 0 | C9: 0 | D9: 0 | E9: 0 | F9: 0 | G9: 0 | H9: 0
A10: 5 | B10: 0 | C10: 0 | D10: 0 | E10: 0 | F10: 0 | G10: 0 | H10: 0
A11: 6 | B11: 1 | C11: 1 | D11: 0 | E11: 1 | F11: 1 | G11: 0 | H11: 1
A12: 7 | B12: 1 | C12: 1 | D12: 1 | E12: 1 | F12: 1 | G12: 1 | H12: 1
A13: 8 | B13: 1 | C13: 1 | D13: 1 | E13: 1 | F13: 1 | G13: 1 | H13: 1
A14: 9 | B14: 0 | C14: 0 | D14: 0 | E14: 0 | F14: 0 | G14: 0 | H14: 0
A15: 10 | B15: 1 | C15: 1 | D15: 1 | E15: 1 | F15: 1 | G15: 1 | H15: 1
A16: 11 | B16: 1 | C16: 1 | D16: 1 | E16: 1 | F16: 1 | G16: 1 | H16: 1
A17: 12 | B17: 0 | C17: 0 | D17: 0 | E17: 0 | F17: 0 | G17: 0 | H17: 0
A18: 13 | B18: 1 | C18: 1 | D18: 1 | E18: 1 | F18: 1 | G18: 1 | H18: 1
A19: 14 | B19: 1 | C19: 1 | D19: 0 | E19: 1 | F19: 1 | G19: 1 | H19: 1
A20: 15 | B20: 1 | C20: 1 | D20: 1 | E20: 1 | F20: 1 | G20: 1 | H20: 1
A21: 16 | B21: 1 | C21: 1 | D21: 1 | E21: 1 | F21: 1 | G21: 1 | H21: 1
A22: 17 | B22: 1 | C22: 1 | D22: 1 | E22: 1 | F22: 1 | G22: 1 | H22: 1
A23: 18 | B23: 1 | C23: 1 | D23: 1 | E23: 1 | F23: 1 | G23: 1 | H23: 1
A24: 19 | B24: 1 | C24: 1 | D24: 1 | E24: 1 | F24: 1 | G24: 1 | H24: 1
A25: 20 | B25: 1 | C25: 1 | D25: 1 | E25: 1 | F25: 1 | G25: 1 | H25: 1
A26: 21 | B26: 1 | C26: 1 | D26: 0 | E26: 1 | F26: 0 | G26: 1 | H26: 1
A27: 22 | B27: 0 | C27: 0 | D27: 1 | E27: 0 | F27: 1 | G27: 0 | H27: 0
A28: 23 | B28: 1 | C28: 1 | D28: 1 | E28: 1 | F28: 1 | G28: 1 | H28: 1
A29: 24 | B29: 1 | C29: 1 | D29: 1 | E29: 1 | F29: 1 | G29: 1 | H29: 1
A30: 25 | B30: 0 | C30: 0 | D30: 0 | E30: 0 | F30: 0 | G30: 0 | H30: 0
A31: 26 | B31: 0 | C31: 1 | D31: 0 | E31: 0 | F31: 0 | G31: 0 | H31: 0
A32: 27 | B32: 1 | C32: 1 | D32: 1 | E32: 1 | F32: 1 | G32: 1 | H32: 1
A33: 28 | B33: 1 | C33: 1 | D33: 1 | E33: 1 | F33: 1 | G33: 1 | H33: 1
A34: 29 | B34: 1 | C34: 1 | D34: 1 | E34: 1 | F34: 1 | G34: 1 | H34: 1
A35: 30 | B35: 0 | C35: 0 | D35: 0 | E35: 0 | F35: 0 | G35: 1 | H35: 0
A36: 31 | B36: 1 | C36: 1 | D36: 1 | E36: 1 | F36: 1 | G36: 1 | H36: 1
A37: 32 | B37: 1 | C37: 1 | D37: 1 | E37: 1 | F37: 1 | G37: 1 | H37: 1
A38: 33 | B38: 1 | C38: 1 | D38: 1 | E38: 1 | F38: 1 | G38: 1 | H38: 1
A39: 34 | B39: 0 | C39: 0 | D39: 1 | E39: 0 | F39: 0 | G39: 1 | H39: 0
A40: 35 | B40: 1 | C40: 1 | D40: 1 | E40: 1 | F40: 1 | G40: 1 | H40: 1
A41: 36 | B41: 1 | C41: 1 | D41: 0 | E41: 1 | F41: 1 | G41: 1 | H41: 1
A42: 37 | B42: 0 | C42: 0 | D42: 0 | E42: 0 | F42: 0 | G42: 0 | H42: 0
A43: 38 | B43: 1 | C43: 1 | D43: 1 | E43: 1 | F43: 1 | G43: 1 | H43: 1
A44: 39 | B44: 0 | C44: 0 | D44: 0 | E44: 0 | F44: 0 | G44: 0 | H44: 0
A45: 40 | B45: 1 | C45: 1 | D45: 1 | E45: 1 | F45: 1 | G45: 1 | H45: 1
A46: 41 | B46: 1 | C46: 1 | D46: 1 | E46: 1 | F46: 1 | G46: 1 | H46: 1
A47: 42 | B47: 0 | C47: 0 | D47: 0 | E47: 0 | F47: 0 | G47: 0 | H47: 0
A48: 43 | B48: 1 | C48: 0 | D48: 1 | E48: 1 | F48: 1 | G48: 1 | H48: 1
A49: 44 | B49: 1 | C49: 1 | D49: 1 | E49: 1 | F49: 1 | G49: 1 | H49: 1
A50: 45 | B50: 0 | C50: 0 | D50: 0 | E50: 0 | F50: 0 | G50: 0 | H50: 0
A51: 46 | B51: 1 | C51: 1 | D51: 1 | E51: 1 | F51: 1 | G51: 1 | H51: 1
A52: 47 | B52: 1 | C52: 1 | D52: 1 | E52: 1 | F52: 1 | G52: 1 | H52: 1
A53: 48 | B53: 0 | C53: 0 | D53: 0 | E53: 0 | F53: 0 | G53: 0 | H53: 0
A54: 49 | B54: 1 | C54: 1 | D54: 1 | E54: 1 | F54: 1 | G54: 1 | H54: 1
A55: 50 | B55: 0 | C55: 0 | D55: 0 | E55: 0 | F55: 0 | G55: 0 | H55: 0
A63: Teil | B63: A-1 | C63: A-2 | D63: A-3 | E63: A-4 | F63: A-5 | G63: A-6 | H63: Referenz
A64: 1 | B64: 1 | C64: 1 | D64: 1 | E64: 1 | F64: 1 | G64: 1 | H64: 1
A65: 2 | B65: 1 | C65: 1 | D65: 1 | E65: 1 | F65: 1 | G65: 1 | H65: 1
A66: 3 | B66: 0 | C66: 0 | D66: 0 | E66: 0 | F66: 0 | G66: 0 | H66: 0
A67: 4 | B67: 0 | C67: 0 | D67: 0 | E67: 0 | F67: 0 | G67: 0 | H67: 0
A68: 5 | B68: 0 | C68: 0 | D68: 0 | E68: 0 | F68: 0 | G68: 0 | H68: 0
A69: 6 | B69: 1 | C69: 1 | D69: 0 | E69: 1 | F69: 1 | G69: 0 | H69: 1
A70: 7 | B70: 1 | C70: 1 | D70: 1 | E70: 1 | F70: 1 | G70: 1 | H70: 1
A71: 8 | B71: 1 | C71: 1 | D71: 1 | E71: 1 | F71: 1 | G71: 1 | H71: 1
A72: 9 | B72: 0 | C72: 0 | D72: 0 | E72: 0 | F72: 0 | G72: 0 | H72: 0
A73: 10 | B73: 1 | C73: 1 | D73: 1 | E73: 1 | F73: 1 | G73: 1 | H73: 1
A74: 11 | B74: 1 | C74: 1 | D74: 1 | E74: 1 | F74: 1 | G74: 1 | H74: 1
A75: 12 | B75: 0 | C75: 0 | D75: 0 | E75: 0 | F75: 0 | G75: 0 | H75: 0
A76: 13 | B76: 1 | C76: 1 | D76: 1 | E76: 1 | F76: 1 | G76: 1 | H76: 1
A77: 14 | B77: 1 | C77: 1 | D77: 0 | E77: 1 | F77: 1 | G77: 1 | H77: 1
A78: 15 | B78: 1 | C78: 1 | D78: 1 | E78: 1 | F78: 1 | G78: 1 | H78: 1
A79: 16 | B79: 1 | C79: 1 | D79: 1 | E79: 1 | F79: 1 | G79: 1 | H79: 1
A80: 17 | B80: 1 | C80: 1 | D80: 1 | E80: 1 | F80: 1 | G80: 1 | H80: 1
A81: 18 | B81: 1 | C81: 1 | D81: 1 | E81: 1 | F81: 1 | G81: 1 | H81: 1
A82: 19 | B82: 1 | C82: 1 | D82: 1 | E82: 1 | F82: 1 | G82: 1 | H82: 1
A83: 20 | B83: 1 | C83: 1 | D83: 1 | E83: 1 | F83: 1 | G83: 1 | H83: 1
A84: 21 | B84: 1 | C84: 1 | D84: 0 | E84: 1 | F84: 0 | G84: 1 | H84: 1
A85: 22 | B85: 0 | C85: 0 | D85: 1 | E85: 0 | F85: 1 | G85: 0 | H85: 0
A86: 23 | B86: 1 | C86: 1 | D86: 1 | E86: 1 | F86: 1 | G86: 1 | H86: 1
A87: 24 | B87: 1 | C87: 1 | D87: 1 | E87: 1 | F87: 1 | G87: 1 | H87: 1
A88: 25 | B88: 0 | C88: 0 | D88: 0 | E88: 0 | F88: 0 | G88: 0 | H88: 0
A89: 26 | B89: 0 | C89: 1 | D89: 0 | E89: 0 | F89: 0 | G89: 0 | H89: 0
A90: 27 | B90: 1 | C90: 1 | D90: 1 | E90: 1 | F90: 1 | G90: 1 | H90: 1
A91: 28 | B91: 1 | C91: 1 | D91: 1 | E91: 1 | F91: 1 | G91: 1 | H91: 1
A92: 29 | B92: 1 | C92: 1 | D92: 1 | E92: 1 | F92: 1 | G92: 1 | H92: 1
A93: 30 | B93: 0 | C93: 0 | D93: 0 | E93: 0 | F93: 0 | G93: 1 | H93: 0

Sheet Berechnung (hidden)
L2: Messsystemanalyse Verfahren 7 attributive Merkmale (Bosch Heft Nr. 10 / AIAG)
AG3: =TODAY() -> 2023-07-04 | AI3: 2023-07-04 | AJ3: =IF(AG3=AI3,1,0) -> 1 | BA3: A*B*C
BA4: nik | BD4: nik*(Nik-1)
AG5: 3 Durchl | AI5: mix | AJ5: 2 Durchl. | BA5: k=1 | BB5: K=2 | BD5: k=1 | BE5: K=2 | CG5: Minitab Tabelle
B6: Part | C6: Appraiser-Evaluation | L6: Stan-dard | M6: Standard Value | N6: Code | AG6: A | AO6: B | AS6: C | AW6: All | BA6: 0 | BB6: 1 | BD6: 0 | BE6: 1 | BJ6: A*A | BL6: B*B | BO6: C*C | BT6: A1-Ref | BU6: A2-Ref | BV6: A3-Ref | BW6: B1-Ref | BX6: B2-Ref | BY6: B3-Ref | BZ6: C1-Ref | CA6: C2-Ref | CB6: C3-Ref | CG6: Reihenfolge | CH6: Prüfer | CI6: Versuch | CJ6: Prüfeinheit | CK6: Ergebnis | CL6: Referenz
C7: A-1 | D7: A-2 | E7: A-3 | F7: B-1 | G7: B-2 | H7: B-3 | I7: C-1 | J7: C-2 | K7: C-3 | AG7: =IF(C8<>"",IF(AND(C8=D8,D8=E8),1,0),"") -> 1 | AH7: =IF(C8<>"",IF(AND(C8=D8,D8=E8,E8=L8),1,0),"") -> 1 | AI7: =IF(AG7<>"",IF(AG7<>AH7,$L8,""),"") ->  | AJ7: =IF(C8<>"",IF(AND(C8=D8),1,0),"") -> 1 | AK7: =IF(C8<>"",IF(AND(C8=D8,D8=L8),1,0),"") -> 1 | AL7: =IF(AJ7<>"",IF(AJ7<>AK7,$L8,""),"") ->  | AO7: =IF(F8<>"",IF(AND(F8=G8,F8=H8),1,0),"") -> 1 | AP7: =IF(F8<>"",IF(AND(F8=G8,G8=H8,H8=L8),1,0),"") -> 1 | AQ7: =IF(AO7<>"",IF(AO7<>AP7,L8,""),"") ->  | AS7: =IF(I8<>"",IF(AND(I8=J8,J8=K8),1,0),"") ->  | AT7: =IF(I8<>"",IF(AND(I8=J8,J8=K8,K8=L8),1,0),"") ->  | AU7: =IF(AS7<>"",IF(AS7<>AT7,L8,""),"") ->  | AW7: =IF(C8<>"",IF(OR(SUM(C8:K8)=COUNT(C8:K8),SUM(C8:K8)=0),1,0),"") -> 1 | AX7: =IF(AT7<>"",IF(AH7+AP7+AT7=3,1,0),"") ->  | CG7: 1 | CH7: A | CI7: 1 | CJ7: 1 | CK7: =C8 -> 1 | CL7: =L8 -> 1
B8: 1 | C8: =IF(Eingabe!C8="","",Eingabe!C8) -> 1 | D8: =IF(Eingabe!D8="","",Eingabe!D8) -> 1 | E8: =IF(Eingabe!E8="","",Eingabe!E8) -> 1 | F8: =IF(Eingabe!F8="","",Eingabe!F8) -> 1 | G8: =IF(Eingabe!G8="","",Eingabe!G8) -> 1 | H8: =IF(Eingabe!H8="","",Eingabe!H8) -> 1 | L8: =IF(Eingabe!I8="","",Eingabe!I8) -> 1 | N8: =IF(C8<>"",IF(SUM(C8:K8)=COUNT(C8:K8),"+",IF(SUM(C8:K8)=0,"-","x")),"") -> + | Q8: Reference Value | X8: Date Preformed | AG8: 1 | AH8: 1 | AI8: =IF(AG8<>"",IF(AG8<>AH8,$L9,""),"") ->  | AJ8: =IF(C9<>"",IF(AND(C9=D9),1,0),"") -> 1 | AK8: =IF(C9<>"",IF(AND(C9=D9,D9=L9),1,0),"") -> 1 | AL8: =IF(AJ8<>"",IF(AJ8<>AK8,$L9,""),"") ->  | AO8: 1 | AP8: 1 | AW8: 1 | AX8: =IF(AT8<>"",IF(AH8+AP8+AT8=3,1,0),"") ->  | BA8: =COUNTIF(C8:K8,0) -> 0 | BB8: =COUNTIF(C8:K8,1) -> 6 | BD8: =BA8*(BA8-1) -> 0 | BE8: =BB8*(BB8-1) -> 30 | BG8: =IF(C8="","",IF(C8=D8,2,0)) -> 2 | BH8: =IF(E8="","",IF(C8=E8,2,0)) -> 2 | BI8: =IF(D8="","",IF(D8=E8,2,0)) -> 2 | BJ8: =SUM(BG8:BI8) -> 6 | BK8: =IF(G8="","",IF(F8=G8,2,0)) -> 2 | BL8: =IF(H8="","",IF(F8=H8,2,0)) -> 2 | BM8: =IF(H8="","",IF(G8=H8,2,0)) -> 2 | BN8: =SUM(BK8:BM8) -> 6 | BO8: =IF(J8="","",IF(I8=J8,2,0)) ->  | BP8: =IF(K8="","",IF(I8=K8,2,0)) ->  | BQ8: =IF(K8="","",IF(J8=K8,2,0)) ->  | BR8: =SUM(BO8:BQ8) -> 0 | BS8: =BD8+BE8 -> 30 | BT8: =IF(C8="","",IF(C8=$L8,2,0)) -> 2 | BU8: =IF(D8="","",IF(D8=$L8,2,0)) -> 2 | BV8: =IF(E8="","",IF(E8=$L8,2,0)) -> 2 | BW8: =IF(F8="","",IF(F8=$L8,2,0)) -> 2 | BX8: =IF(G8="","",IF(G8=$L8,2,0)) -> 2 | BY8: =IF(H8="","",IF(H8=$L8,2,0)) -> 2 | BZ8: =IF(I8="","",IF(I8=$L8,2,0)) ->  | CA8: =IF(J8="","",IF(J8=$L8,2,0)) ->  | CB8: =IF(K8="","",IF(K8=$L8,2,0)) ->  | CG8: 2 | CH8: A | CI8: 1 | CJ8: 2 | CK8: =C9 -> 1 | CL8: =L9 -> 1
B9: =B8+1 -> 2 | C9: =IF(Eingabe!C9="","",Eingabe!C9) -> 1 | D9: =IF(Eingabe!D9="","",Eingabe!D9) -> 1 | E9: =IF(Eingabe!E9="","",Eingabe!E9) -> 1 | F9: =IF(Eingabe!F9="","",Eingabe!F9) -> 1 | G9: =IF(Eingabe!G9="","",Eingabe!G9) -> 1 | H9: =IF(Eingabe!H9="","",Eingabe!H9) -> 1 | L9: =IF(Eingabe!I9="","",Eingabe!I9) -> 1 | N9: =IF(C9<>"",IF(SUM(C9:K9)=COUNT(C9:K9),"+",IF(SUM(C9:K9)=0,"-","x")),"") -> + | Q9: Specification Number | X9: Gage Name | AG9: 1 | AH9: 1 | AJ9: 1 | AK9: 1 | AO9: 1 | AP9: 1 | AW9: 1 | BA9: 0 | BB9: 6 | BD9: =BA9*(BA9-1) -> 0 | BE9: 30 | BG9: 2 | BH9: 2 | BI9: 2 | BJ9: =SUM(BG9:BI9) -> 6 | BK9: 2 | BL9: 2 | BM9: 2 | BN9: =SUM(BK9:BM9) -> 6 | BR9: =SUM(BO9:BQ9) -> 0 | BS9: =BD9+BE9 -> 30 | BT9: 2 | BU9: 2 | BV9: 2 | BW9: 2 | BX9: 2 | BY9: 2 | CG9: 3 | CH9: A | CI9: 1 | CJ9: 3 | CK9: 0 | CL9: 0
B10: 3 | C10: =IF(Eingabe!C10="","",Eingabe!C10) -> 0 | D10: =IF(Eingabe!D10="","",Eingabe!D10) -> 0 | E10: =IF(Eingabe!E10="","",Eingabe!E10) -> 0 | F10: =IF(Eingabe!F10="","",Eingabe!F10) -> 0 | G10: =IF(Eingabe!G10="","",Eingabe!G10) -> 0 | H10: =IF(Eingabe!H10="","",Eingabe!H10) -> 0 | L10: =IF(Eingabe!I10="","",Eingabe!I10) -> 0 | N10: - | Q10: Characteristic Name | X10: Gage Number | AG10: 1 | AH10: 1 | AJ10: 1 | AK10: 1 | AO10: 1 | AP10: 1 | AW10: 1 | BA10: 6 | BB10: 0 | BD10: 30 | BE10: 0 | BG10: 2 | BH10: 2 | BI10: 2 | BJ10: 6 | BK10: 2 | BL10: 2 | BM10: 2 | BN10: 6 | BR10: 0 | BS10: 30 | BT10: 2 | BU10: 2 | BV10: 2 | BW10: 2 | BX10: 2 | BY10: 2 | CG10: 4 | CH10: A | CI10: 1 | CJ10: 4 | CK10: 0 | CL10: 0
B11: 4 | C11: =IF(Eingabe!C11="","",Eingabe!C11) -> 0 | D11: =IF(Eingabe!D11="","",Eingabe!D11) -> 0 | E11: =IF(Eingabe!E11="","",Eingabe!E11) -> 0 | F11: =IF(Eingabe!F11="","",Eingabe!F11) -> 0 | G11: =IF(Eingabe!G11="","",Eingabe!G11) -> 0 | H11: =IF(Eingabe!H11="","",Eingabe!H11) -> 0 | L11: =IF(Eingabe!I11="","",Eingabe!I11) -> 0 | N11: - | Q11: Characteristic Type | X11: Gage Type | AG11: 1 | AH11: 1 | AJ11: 1 | AK11: 1 | AO11: 1 | AP11: 1 | AW11: 1 | BA11: 6 | BB11: 0 | BD11: 30 | BE11: 0 | BG11: 2 | BH11: 2 | BI11: 2 | BJ11: 6 | BK11: 2 | BL11: 2 | BM11: 2 | BN11: 6 | BR11: 0 | BS11: 30 | BT11: 2 | BU11: 2 | BV11: 2 | BW11: 2 | BX11: 2 | BY11: 2 | CG11: 5 | CH11: A | CI11: 1 | CJ11: 5 | CK11: 0 | CL11: 0
B12: 5 | C12: =IF(Eingabe!C12="","",Eingabe!C12) -> 0 | D12: =IF(Eingabe!D12="","",Eingabe!D12) -> 0 | E12: =IF(Eingabe!E12="","",Eingabe!E12) -> 0 | F12: =IF(Eingabe!F12="","",Eingabe!F12) -> 0 | G12: =IF(Eingabe!G12="","",Eingabe!G12) -> 0 | H12: =IF(Eingabe!H12="","",Eingabe!H12) -> 0 | L12: =IF(Eingabe!I12="","",Eingabe!I12) -> 0 | N12: - | Q12: TPS Anzahl | AG12: 0 | AH12: 0 | AJ12: 1 | AK12: 1 | AO12: 0 | AP12: 0 | AW12: 0 | BA12: 6 | BB12: 0 | BD12: 30 | BE12: 0 | BG12: 2 | BH12: 2 | BI12: 2 | BJ12: 6 | BK12: 2 | BL12: 2 | BM12: 2 | BN12: 6 | BR12: 0 | BS12: 30 | BT12: 2 | BU12: 2 | BV12: 2 | BW12: 2 | BX12: 2 | BY12: 2 | CG12: 6 | CH12: A | CI12: 1 | CJ12: 6 | CK12: 1 | CL12: 1
B13: 6 | C13: =IF(Eingabe!C13="","",Eingabe!C13) -> 1 | D13: =IF(Eingabe!D13="","",Eingabe!D13) -> 1 | E13: =IF(Eingabe!E13="","",Eingabe!E13) -> 0 | F13: =IF(Eingabe!F13="","",Eingabe!F13) -> 1 | G13: =IF(Eingabe!G13="","",Eingabe!G13) -> 1 | H13: =IF(Eingabe!H13="","",Eingabe!H13) -> 0 | L13: =IF(Eingabe!I13="","",Eingabe!I13) -> 1 | N13: x | X13: Score < | AA13: 0.81 | AB13: 0.95 | AC13: 1 | AG13: 1 | AH13: 1 | AJ13: 1 | AK13: 1 | AO13: 1 | AP13: 1 | AW13: 1 | BA13: 2 | BB13: 4 | BD13: 2 | BE13: 12 | BG13: 2 | BH13: 0 | BI13: 0 | BJ13: 2 | BK13: 2 | BL13: 0 | BM13: 0 | BN13: 2 | BR13: 0 | BS13: 14 | BT13: 2 | BU13: 2 | BV13: 0 | BW13: 2 | BX13: 2 | BY13: 0 | CG13: 7 | CH13: A | CI13: 1 | CJ13: 7 | CK13: 1 | CL13: 1
B14: 7 | C14: =IF(Eingabe!C14="","",Eingabe!C14) -> 1 | D14: =IF(Eingabe!D14="","",Eingabe!D14) -> 1 | E14: =IF(Eingabe!E14="","",Eingabe!E14) -> 1 | F14: =IF(Eingabe!F14="","",Eingabe!F14) -> 1 | G14: =IF(Eingabe!G14="","",Eingabe!G14) -> 1 | H14: =IF(Eingabe!H14="","",Eingabe!H14) -> 1 | L14: =IF(Eingabe!I14="","",Eingabe!I14) -> 1 | N14: + | Q14: Prüfer A | U14: Prüfer A | X14: Fleiss Kappa < | AA14: 0.81 | AB14: 0.95 | AC14: 1 | AG14: 1 | AH14: 1 | AJ14: 1 | AK14: 1 | AO14: 1 | AP14: 1 | AW14: 1 | BA14: 0 | BB14: 6 | BD14: 0 | BE14: 30 | BG14: 2 | BH14: 2 | BI14: 2 | BJ14: 6 | BK14: 2 | BL14: 2 | BM14: 2 | BN14: 6 | BR14: 0 | BS14: 30 | BT14: 2 | BU14: 2 | BV14: 2 | BW14: 2 | BX14: 2 | BY14: 2 | CG14: 8 | CH14: A | CI14: 1 | CJ14: 8 | CK14: 1 | CL14: 1
B15: 8 | C15: =IF(Eingabe!C15="","",Eingabe!C15) -> 1 | D15: =IF(Eingabe!D15="","",Eingabe!D15) -> 1 | E15: =IF(Eingabe!E15="","",Eingabe!E15) -> 1 | F15: =IF(Eingabe!F15="","",Eingabe!F15) -> 1 | G15: =IF(Eingabe!G15="","",Eingabe!G15) -> 1 | H15: =IF(Eingabe!H15="","",Eingabe!H15) -> 1 | L15: =IF(Eingabe!I15="","",Eingabe!I15) -> 1 | N15: + | Q15: Prüfer B | U15: Prüfer B | X15: Specifications | AG15: 1 | AH15: 1 | AJ15: 1 | AK15: 1 | AO15: 1 | AP15: 1 | AW15: 1 | BA15: 0 | BB15: 6 | BD15: 0 | BE15: 30 | BG15: 2 | BH15: 2 | BI15: 2 | BJ15: 6 | BK15: 2 | BL15: 2 | BM15: 2 | BN15: 6 | BR15: 0 | BS15: 30 | BT15: 2 | BU15: 2 | BV15: 2 | BW15: 2 | BX15: 2 | BY15: 2 | CG15: 9 | CH15: A | CI15: 1 | CJ15: 9 | CK15: 0 | CL15: 0
B16: 9 | C16: =IF(Eingabe!C16="","",Eingabe!C16) -> 0 | D16: =IF(Eingabe!D16="","",Eingabe!D16) -> 0 | E16: =IF(Eingabe!E16="","",Eingabe!E16) -> 0 | F16: =IF(Eingabe!F16="","",Eingabe!F16) -> 0 | G16: =IF(Eingabe!G16="","",Eingabe!G16) -> 0 | H16: =IF(Eingabe!H16="","",Eingabe!H16) -> 0 | L16: =IF(Eingabe!I16="","",Eingabe!I16) -> 0 | N16: - | Q16: Prüfer C | U16: Prüfer C | X16: - LSL | AG16: 1 | AH16: 1 | AJ16: 1 | AK16: 1 | AO16: 1 | AP16: 1 | AW16: 1 | BA16: 6 | BB16: 0 | BD16: 30 | BE16: 0 | BG16: 2 | BH16: 2 | BI16: 2 | BJ16: 6 | BK16: 2 | BL16: 2 | BM16: 2 | BN16: 6 | BR16: 0 | BS16: 30 | BT16: 2 | BU16: 2 | BV16: 2 | BW16: 2 | BX16: 2 | BY16: 2 | CG16: 10 | CH16: A | CI16: 1 | CJ16: 10 | CK16: 1 | CL16: 1
B17: 10 | C17: =IF(Eingabe!C17="","",Eingabe!C17) -> 1 | D17: =IF(Eingabe!D17="","",Eingabe!D17) -> 1 | E17: =IF(Eingabe!E17="","",Eingabe!E17) -> 1 | F17: =IF(Eingabe!F17="","",Eingabe!F17) -> 1 | G17: =IF(Eingabe!G17="","",Eingabe!G17) -> 1 | H17: =IF(Eingabe!H17="","",Eingabe!H17) -> 1 | L17: =IF(Eingabe!I17="","",Eingabe!I17) -> 1 | N17: + | Q17: Prüfdatum | X17: - USL | AG17: 1 | AH17: 1 | AJ17: 1 | AK17: 1 | AO17: 1 | AP17: 1 | AW17: 1 | BA17: 0 | BB17: 6 | BD17: 0 | BE17: 30 | BG17: 2 | BH17: 2 | BI17: 2 | BJ17: 6 | BK17: 2 | BL17: 2 | BM17: 2 | BN17: 6 | BR17: 0 | BS17: 30 | BT17: 2 | BU17: 2 | BV17: 2 | BW17: 2 | BX17: 2 | BY17: 2 | CG17: 11 | CH17: A | CI17: 1 | CJ17: 11 | CK17: 1 | CL17: 1
B18: 11 | C18: =IF(Eingabe!C18="","",Eingabe!C18) -> 1 | D18: =IF(Eingabe!D18="","",Eingabe!D18) -> 1 | E18: =IF(Eingabe!E18="","",Eingabe!E18) -> 1 | F18: =IF(Eingabe!F18="","",Eingabe!F18) -> 1 | G18: =IF(Eingabe!G18="","",Eingabe!G18) -> 1 | H18: =IF(Eingabe!H18="","",Eingabe!H18) -> 1 | L18: =IF(Eingabe!I18="","",Eingabe!I18) -> 1 | N18: + | Q18: Prüfung durch Id | X18: Resolution | AG18: 1 | AH18: 1 | AJ18: 1 | AK18: 1 | AO18: 1 | AP18: 1 | AW18: 1 | BA18: 0 | BB18: 6 | BD18: 0 | BE18: 30 | BG18: 2 | BH18: 2 | BI18: 2 | BJ18: 6 | BK18: 2 | BL18: 2 | BM18: 2 | BN18: 6 | BR18: 0 | BS18: 30 | BT18: 2 | BU18: 2 | BV18: 2 | BW18: 2 | BX18: 2 | BY18: 2 | CG18: 12 | CH18: A | CI18: 1 | CJ18: 12 | CK18: 0 | CL18: 0
B19: 12 | C19: =IF(Eingabe!C19="","",Eingabe!C19) -> 0 | D19: =IF(Eingabe!D19="","",Eingabe!D19) -> 0 | E19: =IF(Eingabe!E19="","",Eingabe!E19) -> 0 | F19: =IF(Eingabe!F19="","",Eingabe!F19) -> 0 | G19: =IF(Eingabe!G19="","",Eingabe!G19) -> 0 | H19: =IF(Eingabe!H19="","",Eingabe!H19) -> 0 | L19: =IF(Eingabe!I19="","",Eingabe!I19) -> 0 | N19: - | Q19: Prüfung durch Name | AG19: 1 | AH19: 1 | AJ19: 1 | AK19: 1 | AO19: 1 | AP19: 1 | AW19: 1 | BA19: 6 | BB19: 0 | BD19: 30 | BE19: 0 | BG19: 2 | BH19: 2 | BI19: 2 | BJ19: 6 | BK19: 2 | BL19: 2 | BM19: 2 | BN19: 6 | BR19: 0 | BS19: 30 | BT19: 2 | BU19: 2 | BV19: 2 | BW19: 2 | BX19: 2 | BY19: 2 | CG19: 13 | CH19: A | CI19: 1 | CJ19: 13 | CK19: 1 | CL19: 1
B20: 13 | C20: =IF(Eingabe!C20="","",Eingabe!C20) -> 1 | D20: =IF(Eingabe!D20="","",Eingabe!D20) -> 1 | E20: =IF(Eingabe!E20="","",Eingabe!E20) -> 1 | F20: =IF(Eingabe!F20="","",Eingabe!F20) -> 1 | G20: =IF(Eingabe!G20="","",Eingabe!G20) -> 1 | H20: =IF(Eingabe!H20="","",Eingabe!H20) -> 1 | L20: =IF(Eingabe!I20="","",Eingabe!I20) -> 1 | N20: + | AG20: 0 | AH20: 0 | AJ20: 1 | AK20: 1 | AO20: 1 | AP20: 1 | AW20: 0 | BA20: 0 | BB20: 6 | BD20: 0 | BE20: 30 | BG20: 2 | BH20: 2 | BI20: 2 | BJ20: 6 | BK20: 2 | BL20: 2 | BM20: 2 | BN20: 6 | BR20: 0 | BS20: 30 | BT20: 2 | BU20: 2 | BV20: 2 | BW20: 2 | BX20: 2 | BY20: 2 | CG20: 14 | CH20: A | CI20: 1 | CJ20: 14 | CK20: 1 | CL20: 1
B21: 14 | C21: =IF(Eingabe!C21="","",Eingabe!C21) -> 1 | D21: =IF(Eingabe!D21="","",Eingabe!D21) -> 1 | E21: =IF(Eingabe!E21="","",Eingabe!E21) -> 0 | F21: =IF(Eingabe!F21="","",Eingabe!F21) -> 1 | G21: =IF(Eingabe!G21="","",Eingabe!G21) -> 1 | H21: =IF(Eingabe!H21="","",Eingabe!H21) -> 1 | L21: =IF(Eingabe!I21="","",Eingabe!I21) -> 1 | N21: x | Q21: Anzahl Durchgänge | U21: =IF(C8<>"",COUNT(C8:E8),"") -> 3 | AG21: 1 | AH21: 1 | AJ21: 1 | AK21: 1 | AO21: 1 | AP21: 1 | AW21: 1 | BA21: 1 | BB21: 5 | BD21: 0 | BE21: 20 | BG21: 2 | BH21: 0 | BI21: 0 | BJ21: 2 | BK21: 2 | BL21: 2 | BM21: 2 | BN21: 6 | BR21: 0 | BS21: 20 | BT21: 2 | BU21: 2 | BV21: 0 | BW21: 2 | BX21: 2 | BY21: 2 | CG21: 15 | CH21: A | CI21: 1 | CJ21: 15 | CK21: 1 | CL21: 1
B22: 15 | C22: =IF(Eingabe!C22="","",Eingabe!C22) -> 1 | D22: =IF(Eingabe!D22="","",Eingabe!D22) -> 1 | E22: =IF(Eingabe!E22="","",Eingabe!E22) -> 1 | F22: =IF(Eingabe!F22="","",Eingabe!F22) -> 1 | G22: =IF(Eingabe!G22="","",Eingabe!G22) -> 1 | H22: =IF(Eingabe!H22="","",Eingabe!H22) -> 1 | L22: =IF(Eingabe!I22="","",Eingabe!I22) -> 1 | N22: + | Q22: Anzahl Teile | U22: =IF(C8<>"",COUNT(C8:C57),"") -> 30 | AG22: 1 | AH22: 1 | AJ22: 1 | AK22: 1 | AO22: 1 | AP22: 1 | AW22: 1 | BA22: 0 | BB22: 6 | BD22: 0 | BE22: 30 | BG22: 2 | BH22: 2 | BI22: 2 | BJ22: 6 | BK22: 2 | BL22: 2 | BM22: 2 | BN22: 6 | BR22: 0 | BS22: 30 | BT22: 2 | BU22: 2 | BV22: 2 | BW22: 2 | BX22: 2 | BY22: 2 | CG22: 16 | CH22: A | CI22: 1 | CJ22: 16 | CK22: 1 | CL22: 1
B23: 16 | C23: =IF(Eingabe!C23="","",Eingabe!C23) -> 1 | D23: =IF(Eingabe!D23="","",Eingabe!D23) -> 1 | E23: =IF(Eingabe!E23="","",Eingabe!E23) -> 1 | F23: =IF(Eingabe!F23="","",Eingabe!F23) -> 1 | G23: =IF(Eingabe!G23="","",Eingabe!G23) -> 1 | H23: =IF(Eingabe!H23="","",Eingabe!H23) -> 1 | L23: =IF(Eingabe!I23="","",Eingabe!I23) -> 1 | N23: + | Q23: Anzahl of Prüfer | U23: =IF(C8<>"",COUNT(C8,F8,I8),"") -> 2 | AG23: 1 | AH23: 1 | AJ23: 1 | AK23: 1 | AO23: 1 | AP23: 1 | AW23: 1 | BA23: 0 | BB23: 6 | BD23: 0 | BE23: 30 | BG23: 2 | BH23: 2 | BI23: 2 | BJ23: 6 | BK23: 2 | BL23: 2 | BM23: 2 | BN23: 6 | BR23: 0 | BS23: 30 | BT23: 2 | BU23: 2 | BV23: 2 | BW23: 2 | BX23: 2 | BY23: 2 | CG23: 17 | CH23: A | CI23: 1 | CJ23: 17 | CK23: 1 | CL23: 1
B24: 17 | C24: =IF(Eingabe!C24="","",Eingabe!C24) -> 1 | D24: =IF(Eingabe!D24="","",Eingabe!D24) -> 1 | E24: =IF(Eingabe!E24="","",Eingabe!E24) -> 1 | F24: =IF(Eingabe!F24="","",Eingabe!F24) -> 1 | G24: =IF(Eingabe!G24="","",Eingabe!G24) -> 1 | H24: =IF(Eingabe!H24="","",Eingabe!H24) -> 1 | L24: =IF(Eingabe!I24="","",Eingabe!I24) -> 1 | N24: + | AG24: 1 | AH24: 1 | AJ24: 1 | AK24: 1 | AO24: 1 | AP24: 1 | AW24: 1 | BA24: 0 | BB24: 6 | BD24: 0 | BE24: 30 | BG24: 2 | BH24: 2 | BI24: 2 | BJ24: 6 | BK24: 2 | BL24: 2 | BM24: 2 | BN24: 6 | BR24: 0 | BS24: 30 | BT24: 2 | BU24: 2 | BV24: 2 | BW24: 2 | BX24: 2 | BY24: 2 | CG24: 18 | CH24: A | CI24: 1 | CJ24: 18 | CK24: 1 | CL24: 1
B25: 18 | C25: =IF(Eingabe!C25="","",Eingabe!C25) -> 1 | D25: =IF(Eingabe!D25="","",Eingabe!D25) -> 1 | E25: =IF(Eingabe!E25="","",Eingabe!E25) -> 1 | F25: =IF(Eingabe!F25="","",Eingabe!F25) -> 1 | G25: =IF(Eingabe!G25="","",Eingabe!G25) -> 1 | H25: =IF(Eingabe!H25="","",Eingabe!H25) -> 1 | L25: =IF(Eingabe!I25="","",Eingabe!I25) -> 1 | N25: + | P25: Prüfer | AG25: 1 | AH25: 1 | AJ25: 1 | AK25: 1 | AO25: 1 | AP25: 1 | AW25: 1 | BA25: 0 | BB25: 6 | BD25: 0 | BE25: 30 | BG25: 2 | BH25: 2 | BI25: 2 | BJ25: 6 | BK25: 2 | BL25: 2 | BM25: 2 | BN25: 6 | BR25: 0 | BS25: 30 | BT25: 2 | BU25: 2 | BV25: 2 | BW25: 2 | BX25: 2 | BY25: 2 | CG25: 19 | CH25: A | CI25: 1 | CJ25: 19 | CK25: 1 | CL25: 1
B26: 19 | C26: =IF(Eingabe!C26="","",Eingabe!C26) -> 1 | D26: =IF(Eingabe!D26="","",Eingabe!D26) -> 1 | E26: =IF(Eingabe!E26="","",Eingabe!E26) -> 1 | F26: =IF(Eingabe!F26="","",Eingabe!F26) -> 1 | G26: =IF(Eingabe!G26="","",Eingabe!G26) -> 1 | H26: =IF(Eingabe!H26="","",Eingabe!H26) -> 1 | L26: =IF(Eingabe!I26="","",Eingabe!I26) -> 1 | N26: + | S26: Innerhalb Prüfer | Y26: Zwischen | AG26: 1 | AH26: 1 | AJ26: 1 | AK26: 1 | AO26: 1 | AP26: 1 | AW26: 1 | BA26: 0 | BB26: 6 | BD26: 0 | BE26: 30 | BG26: 2 | BH26: 2 | BI26: 2 | BJ26: 6 | BK26: 2 | BL26: 2 | BM26: 2 | BN26: 6 | BR26: 0 | BS26: 30 | BT26: 2 | BU26: 2 | BV26: 2 | BW26: 2 | BX26: 2 | BY26: 2 | CG26: 20 | CH26: A | CI26: 1 | CJ26: 20 | CK26: 1 | CL26: 1
B27: 20 | C27: =IF(Eingabe!C27="","",Eingabe!C27) -> 1 | D27: =IF(Eingabe!D27="","",Eingabe!D27) -> 1 | E27: =IF(Eingabe!E27="","",Eingabe!E27) -> 1 | F27: =IF(Eingabe!F27="","",Eingabe!F27) -> 1 | G27: =IF(Eingabe!G27="","",Eingabe!G27) -> 1 | H27: =IF(Eingabe!H27="","",Eingabe!H27) -> 1 | L27: =IF(Eingabe!I27="","",Eingabe!I27) -> 1 | N27: + | S27: =U14 -> Prüfer A | U27: =U15 -> Prüfer B | W27: =U16 -> Prüfer C | Y27: Prüfer | AG27: 0 | AH27: 0 | AJ27: 1 | AK27: 1 | AO27: 0 | AP27: 0 | AW27: 0 | BA27: 0 | BB27: 6 | BD27: 0 | BE27: 30 | BG27: 2 | BH27: 2 | BI27: 2 | BJ27: 6 | BK27: 2 | BL27: 2 | BM27: 2 | BN27: 6 | BR27: 0 | BS27: 30 | BT27: 2 | BU27: 2 | BV27: 2 | BW27: 2 | BX27: 2 | BY27: 2 | CG27: 21 | CH27: A | CI27: 1 | CJ27: 21 | CK27: 1 | CL27: 1
B28: 21 | C28: =IF(Eingabe!C28="","",Eingabe!C28) -> 1 | D28: =IF(Eingabe!D28="","",Eingabe!D28) -> 1 | E28: =IF(Eingabe!E28="","",Eingabe!E28) -> 0 | F28: =IF(Eingabe!F28="","",Eingabe!F28) -> 1 | G28: =IF(Eingabe!G28="","",Eingabe!G28) -> 0 | H28: =IF(Eingabe!H28="","",Eingabe!H28) -> 1 | L28: =IF(Eingabe!I28="","",Eingabe!I28) -> 1 | N28: x | P28: Geprüft gesamt | S28: =IF(C8<>"",COUNT(C8:C57),"") -> 30 | U28: =IF(F8<>"",COUNT(F8:F57),"") -> 30 | W28: =IF(I8<>"",COUNT(I8:I57),"") ->  | Y28: =S28 -> 30 | AG28: 0 | AH28: 0 | AJ28: 1 | AK28: 1 | AO28: 0 | AP28: 0 | AW28: 0 | BA28: 2 | BB28: 4 | BD28: 2 | BE28: 12 | BG28: 2 | BH28: 0 | BI28: 0 | BJ28: 2 | BK28: 0 | BL28: 2 | BM28: 0 | BN28: 2 | BR28: 0 | BS28: 14 | BT28: 2 | BU28: 2 | BV28: 0 | BW28: 2 | BX28: 0 | BY28: 2 | CG28: 22 | CH28: A | CI28: 1 | CJ28: 22 | CK28: 0 | CL28: 0
B29: 22 | C29: =IF(Eingabe!C29="","",Eingabe!C29) -> 0 | D29: =IF(Eingabe!D29="","",Eingabe!D29) -> 0 | E29: =IF(Eingabe!E29="","",Eingabe!E29) -> 1 | F29: =IF(Eingabe!F29="","",Eingabe!F29) -> 0 | G29: =IF(Eingabe!G29="","",Eingabe!G29) -> 1 | H29: =IF(Eingabe!H29="","",Eingabe!H29) -> 0 | L29: =IF(Eingabe!I29="","",Eingabe!I29) -> 0 | N29: x | P29: # Matched | S29: =IF(U21=3,IF(C8<>"",SUM(AG7:AG56),""),IF(C8<>"",SUM(AJ7:AJ56),"")) -> 25 | U29: =IF(F8<>"",SUM(AO7:AO56),"") -> 26 | W29: =IF(I8<>"",SUM(AS7:AS56),"") ->  | Y29: =IF(S28<>"",SUM(AW7:AW56),"") -> 24 | AG29: 1 | AH29: 1 | AJ29: 1 | AK29: 1 | AO29: 1 | AP29: 1 | AW29: 1 | BA29: 4 | BB29: 2 | BD29: 12 | BE29: 2 | BG29: 2 | BH29: 0 | BI29: 0 | BJ29: 2 | BK29: 0 | BL29: 2 | BM29: 0 | BN29: 2 | BR29: 0 | BS29: 14 | BT29: 2 | BU29: 2 | BV29: 0 | BW29: 2 | BX29: 0 | BY29: 2 | CG29: 23 | CH29: A | CI29: 1 | CJ29: 23 | CK29: 1 | CL29: 1
B30: 23 | C30: =IF(Eingabe!C30="","",Eingabe!C30) -> 1 | D30: =IF(Eingabe!D30="","",Eingabe!D30) -> 1 | E30: =IF(Eingabe!E30="","",Eingabe!E30) -> 1 | F30: =IF(Eingabe!F30="","",Eingabe!F30) -> 1 | G30: =IF(Eingabe!G30="","",Eingabe!G30) -> 1 | H30: =IF(Eingabe!H30="","",Eingabe!H30) -> 1 | L30: =IF(Eingabe!I30="","",Eingabe!I30) -> 1 | N30: + | P30: 95% upper CI | S30: =IF(S29<>"",IF(S28=S29,1,(2*(S29+1)*FINV(0.025,2*(S29+1),2*(S28-S29)))/(2*(S28-S29)+2*(S29+1)*FINV(0.025,2*(S29+1),2*(S28-S29)))),"") -> 0.9435783035 | U30: =IF(U29<>"",IF(U28=U29,1,(2*(U29+1)*FINV(0.025,2*(U29+1),2*(U28-U29)))/(2*(U28-U29)+2*(U29+1)*FINV(0.025,2*(U29+1),2*(U28-U29)))),"") -> 0.9624465037 | W30: =IF(W29<>"",IF(W28=W29,1,(2*(W29+1)*FINV(0.025,2*(W29+1),2*(W28-W29)))/(2*(W28-W29)+2*(W29+1)*FINV(0.025,2*(W29+1),2*(W28-W29)))),"") ->  | Y30: =IF(Y29<>"",IF(Y28=Y29,1,(2*(Y29+1)*FINV(0.025,2*(Y29+1),2*(Y28-Y29)))/(2*(Y28-Y29)+2*(Y29+1)*FINV(0.025,2*(Y29+1),2*(Y28-Y29)))),"") -> 0.922864488 | AG30: 1 | AH30: 1 | AJ30: 1 | AK30: 1 | AO30: 1 | AP30: 1 | AW30: 1 | BA30: 0 | BB30: 6 | BD30: 0 | BE30: 30 | BG30: 2 | BH30: 2 | BI30: 2 | BJ30: 6 | BK30: 2 | BL30: 2 | BM30: 2 | BN30: 6 | BR30: 0 | BS30: 30 | BT30: 2 | BU30: 2 | BV30: 2 | BW30: 2 | BX30: 2 | BY30: 2 | CG30: 24 | CH30: A | CI30: 1 | CJ30: 24 | CK30: 1 | CL30: 1
B31: 24 | C31: =IF(Eingabe!C31="","",Eingabe!C31) -> 1 | D31: =IF(Eingabe!D31="","",Eingabe!D31) -> 1 | E31: =IF(Eingabe!E31="","",Eingabe!E31) -> 1 | F31: =IF(Eingabe!F31="","",Eingabe!F31) -> 1 | G31: =IF(Eingabe!G31="","",Eingabe!G31) -> 1 | H31: =IF(Eingabe!H31="","",Eingabe!H31) -> 1 | L31: =IF(Eingabe!I31="","",Eingabe!I31) -> 1 | N31: + | P31: Ergebnis | S31: =IF(S28<>"",(S29/S28)/AJ3,"") -> 0.8333333333 | U31: =IF(U28<>"",(U29/U28)/AJ3,"") -> 0.8666666667 | W31: =IF(W28<>"",(W29/W28)/AJ3,"") ->  | Y31: =IF(Y28<>"",Y29/Y28,"") -> 0.8 | AG31: 1 | AH31: 1 | AJ31: 1 | AK31: 1 | AO31: 1 | AP31: 1 | AW31: 1 | BA31: 0 | BB31: 6 | BD31: 0 | BE31: 30 | BG31: 2 | BH31: 2 | BI31: 2 | BJ31: 6 | BK31: 2 | BL31: 2 | BM31: 2 | BN31: 6 | BR31: 0 | BS31: 30 | BT31: 2 | BU31: 2 | BV31: 2 | BW31: 2 | BX31: 2 | BY31: 2 | CG31: 25 | CH31: A | CI31: 1 | CJ31: 25 | CK31: 0 | CL31: 0
B32: 25 | C32: =IF(Eingabe!C32="","",Eingabe!C32) -> 0 | D32: =IF(Eingabe!D32="","",Eingabe!D32) -> 0 | E32: =IF(Eingabe!E32="","",Eingabe!E32) -> 0 | F32: =IF(Eingabe!F32="","",Eingabe!F32) -> 0 | G32: =IF(Eingabe!G32="","",Eingabe!G32) -> 0 | H32: =IF(Eingabe!H32="","",Eingabe!H32) -> 0 | L32: =IF(Eingabe!I32="","",Eingabe!I32) -> 0 | N32: - | P32: 95% lower CI | S32: =IF(S29<>"",IF(S29=0,0,(2*S29*FINV(0.975,2*S29,2*(S28-S29+1)))/(2*(S28-S29+1)+2*S29*FINV(0.975,2*S29,2*(S28-S29+1)))),"") -> 0.6527883012 | U32: =IF(U29<>"",IF(S29=0,0,(2*U29*FINV(0.975,2*U29,2*(U28-U29+1)))/(2*(U28-U29+1)+2*U29*FINV(0.975,2*U29,2*(U28-U29+1)))),"") -> 0.6927816497 | W32: =IF(W29<>"",IF(S29=0,0,(2*W29*FINV(0.975,2*W29,2*(W28-W29+1)))/(2*(W28-W29+1)+2*W29*FINV(0.975,2*W29,2*(W28-W29+1)))),"") ->  | Y32: =IF(Y29<>"",IF(S29=0,0,(2*Y29*FINV(0.975,2*Y29,2*(Y28-Y29+1)))/(2*(Y28-Y29+1)+2*Y29*FINV(0.975,2*Y29,2*(Y28-Y29+1)))),"") -> 0.614333489 | AG32: 0 | AH32: 0 | AJ32: 0 | AK32: 0 | AO32: 1 | AP32: 1 | AW32: 0 | BA32: 6 | BB32: 0 | BD32: 30 | BE32: 0 | BG32: 2 | BH32: 2 | BI32: 2 | BJ32: 6 | BK32: 2 | BL32: 2 | BM32: 2 | BN32: 6 | BR32: 0 | BS32: 30 | BT32: 2 | BU32: 2 | BV32: 2 | BW32: 2 | BX32: 2 | BY32: 2 | CG32: 26 | CH32: A | CI32: 1 | CJ32: 26 | CK32: 0 | CL32: 0
B33: 26 | C33: =IF(Eingabe!C33="","",Eingabe!C33) -> 0 | D33: =IF(Eingabe!D33="","",Eingabe!D33) -> 1 | E33: =IF(Eingabe!E33="","",Eingabe!E33) -> 0 | F33: =IF(Eingabe!F33="","",Eingabe!F33) -> 0 | G33: =IF(Eingabe!G33="","",Eingabe!G33) -> 0 | H33: =IF(Eingabe!H33="","",Eingabe!H33) -> 0 | L33: =IF(Eingabe!I33="","",Eingabe!I33) -> 0 | N33: x | P33: Fleiss Kappa | S33: =BJ73/AJ3 -> 0.7407834101 | U33: =BN73/AJ3 -> 0.7883597884 | W33: =BR73/AJ3 ->  | Y33: =BS73 -> 0.7957818182 | AG33: 1 | AH33: 1 | AJ33: 1 | AK33: 1 | AO33: 1 | AP33: 1 | AW33: 1 | BA33: 5 | BB33: 1 | BD33: 20 | BE33: 0 | BG33: 0 | BH33: 2 | BI33: 0 | BJ33: 2 | BK33: 2 | BL33: 2 | BM33: 2 | BN33: 6 | BR33: 0 | BS33: 20 | BT33: 2 | BU33: 0 | BV33: 2 | BW33: 2 | BX33: 2 | BY33: 2 | CG33: 27 | CH33: A | CI33: 1 | CJ33: 27 | CK33: 1 | CL33: 1
B34: 27 | C34: =IF(Eingabe!C34="","",Eingabe!C34) -> 1 | D34: =IF(Eingabe!D34="","",Eingabe!D34) -> 1 | E34: =IF(Eingabe!E34="","",Eingabe!E34) -> 1 | F34: =IF(Eingabe!F34="","",Eingabe!F34) -> 1 | G34: =IF(Eingabe!G34="","",Eingabe!G34) -> 1 | H34: =IF(Eingabe!H34="","",Eingabe!H34) -> 1 | L34: =IF(Eingabe!I34="","",Eingabe!I34) -> 1 | N34: + | AG34: 1 | AH34: 1 | AJ34: 1 | AK34: 1 | AO34: 1 | AP34: 1 | AW34: 1 | BA34: 0 | BB34: 6 | BD34: 0 | BE34: 30 | BG34: 2 | BH34: 2 | BI34: 2 | BJ34: 6 | BK34: 2 | BL34: 2 | BM34: 2 | BN34: 6 | BR34: 0 | BS34: 30 | BT34: 2 | BU34: 2 | BV34: 2 | BW34: 2 | BX34: 2 | BY34: 2 | CG34: 28 | CH34: A | CI34: 1 | CJ34: 28 | CK34: 1 | CL34: 1
B35: 28 | C35: =IF(Eingabe!C35="","",Eingabe!C35) -> 1 | D35: =IF(Eingabe!D35="","",Eingabe!D35) -> 1 | E35: =IF(Eingabe!E35="","",Eingabe!E35) -> 1 | F35: =IF(Eingabe!F35="","",Eingabe!F35) -> 1 | G35: =IF(Eingabe!G35="","",Eingabe!G35) -> 1 | H35: =IF(Eingabe!H35="","",Eingabe!H35) -> 1 | L35: =IF(Eingabe!I35="","",Eingabe!I35) -> 1 | N35: + | P35: Prüfer vs. Standard | AG35: 1 | AH35: 1 | AJ35: 1 | AK35: 1 | AO35: 1 | AP35: 1 | AW35: 1 | BA35: 0 | BB35: 6 | BD35: 0 | BE35: 30 | BG35: 2 | BH35: 2 | BI35: 2 | BJ35: 6 | BK35: 2 | BL35: 2 | BM35: 2 | BN35: 6 | BR35: 0 | BS35: 30 | BT35: 2 | BU35: 2 | BV35: 2 | BW35: 2 | BX35: 2 | BY35: 2 | CG35: 29 | CH35: A | CI35: 1 | CJ35: 29 | CK35: 1 | CL35: 1
B36: 29 | C36: =IF(Eingabe!C36="","",Eingabe!C36) -> 1 | D36: =IF(Eingabe!D36="","",Eingabe!D36) -> 1 | E36: =IF(Eingabe!E36="","",Eingabe!E36) -> 1 | F36: =IF(Eingabe!F36="","",Eingabe!F36) -> 1 | G36: =IF(Eingabe!G36="","",Eingabe!G36) -> 1 | H36: =IF(Eingabe!H36="","",Eingabe!H36) -> 1 | L36: =IF(Eingabe!I36="","",Eingabe!I36) -> 1 | N36: + | P36: Source | S36: Einzelne Prüfer vs. Standard | Y36: Alle Prüfer vs. Standard | AG36: 1 | AH36: 1 | AJ36: 1 | AK36: 1 | AO36: 0 | AP36: 0 | AW36: 0 | BA36: 0 | BB36: 6 | BD36: 0 | BE36: 30 | BG36: 2 | BH36: 2 | BI36: 2 | BJ36: 6 | BK36: 2 | BL36: 2 | BM36: 2 | BN36: 6 | BR36: 0 | BS36: 30 | BT36: 2 | BU36: 2 | BV36: 2 | BW36: 2 | BX36: 2 | BY36: 2 | CG36: 30 | CH36: A | CI36: 1 | CJ36: 30 | CK36: 0 | CL36: 0
B37: 30 | C37: =IF(Eingabe!C37="","",Eingabe!C37) -> 0 | D37: =IF(Eingabe!D37="","",Eingabe!D37) -> 0 | E37: =IF(Eingabe!E37="","",Eingabe!E37) -> 0 | F37: =IF(Eingabe!F37="","",Eingabe!F37) -> 0 | G37: =IF(Eingabe!G37="","",Eingabe!G37) -> 0 | H37: =IF(Eingabe!H37="","",Eingabe!H37) -> 1 | L37: =IF(Eingabe!I37="","",Eingabe!I37) -> 0 | N37: x | S37: =S27 -> Prüfer A | U37: =U27 -> Prüfer B | W37: =W27 -> Prüfer C | BA37: 5 | BB37: 1 | BD37: 20 | BE37: 0 | BG37: 2 | BH37: 2 | BI37: 2 | BJ37: 6 | BK37: 2 | BL37: 0 | BM37: 0 | BN37: 2 | BR37: 0 | BS37: 20 | BT37: 2 | BU37: 2 | BV37: 2 | BW37: 2 | BX37: 2 | BY37: 0 | CG37: 31 | CH37: A | CI37: 1 | CJ37: 31
B38: 31 | C38: =IF(Eingabe!C38="","",Eingabe!C38) ->  | D38: =IF(Eingabe!D38="","",Eingabe!D38) ->  | E38: =IF(Eingabe!E38="","",Eingabe!E38) ->  | F38: =IF(Eingabe!F38="","",Eingabe!F38) ->  | G38: =IF(Eingabe!G38="","",Eingabe!G38) ->  | H38: =IF(Eingabe!H38="","",Eingabe!H38) ->  | L38: =IF(Eingabe!I38="","",Eingabe!I38) ->  | N38: =IF(C38<>"",IF(SUM(C38:K38)=9,"+",IF(SUM(C38:K38)=0,"-","x")),"") ->  | P38: Geprüft gesamt | S38: =S28 -> 30 | U38: =U28 -> 30 | W38: =W28 ->  | Y38: =S38 -> 30 | BA38: 0 | BB38: 0 | BD38: 0 | BE38: 0 | BJ38: 0 | BN38: 0 | BR38: 0 | BS38: 0 | CG38: 32 | CH38: A | CI38: 1 | CJ38: 32
B39: 32 | C39: =IF(Eingabe!C39="","",Eingabe!C39) ->  | D39: =IF(Eingabe!D39="","",Eingabe!D39) ->  | E39: =IF(Eingabe!E39="","",Eingabe!E39) ->  | F39: =IF(Eingabe!F39="","",Eingabe!F39) ->  | G39: =IF(Eingabe!G39="","",Eingabe!G39) ->  | H39: =IF(Eingabe!H39="","",Eingabe!H39) ->  | L39: =IF(Eingabe!I39="","",Eingabe!I39) ->  | P39: # Matched | S39: =IF(S38<>"",SUM(AH7:AH56),"") -> 25 | U39: =IF(U38<>"",SUM(AP7:AP56),"") -> 26 | W39: =IF(W38<>"",SUM(AT7:AT56),"") ->  | Y39: =IF(S38<>"",SUM(AX7:AX56),"") -> 0 | AO39: =IF(F40<>"",IF(AND(F40=G40,F40=H40),1,0),"") ->  | AP39: =IF(F40<>"",IF(AND(F40=G40,G40=H40,H40=L40),1,0),"") ->  | AQ39: =IF(AO39<>"",IF(AO39<>AP39,L40,""),"") ->  | AS39: =IF(I40<>"",IF(AND(I40=J40,J40=K40),1,0),"") ->  | AT39: =IF(I40<>"",IF(AND(I40=J40,J40=K40,K40=L40),1,0),"") ->  | AU39: =IF(AS39<>"",IF(AS39<>AT39,L40,""),"") ->  | AW39: =IF(C40<>"",IF(OR(SUM(C40:K40)=COUNT(C40:K40),SUM(C40:K40)=0),1,0),"") ->  | BA39: 0 | BB39: 0 | BD39: 0 | BE39: 0 | BJ39: 0 | BN39: 0 | BR39: 0 | BS39: 0 | CG39: 33 | CH39: A | CI39: 1 | CJ39: 33
B40: 33 | C40: =IF(Eingabe!C40="","",Eingabe!C40) ->  | D40: =IF(Eingabe!D40="","",Eingabe!D40) ->  | E40: =IF(Eingabe!E40="","",Eingabe!E40) ->  | F40: =IF(Eingabe!F40="","",Eingabe!F40) ->  | G40: =IF(Eingabe!G40="","",Eingabe!G40) ->  | H40: =IF(Eingabe!H40="","",Eingabe!H40) ->  | L40: =IF(Eingabe!I40="","",Eingabe!I40) ->  | P40: False Positive (*5) | S40: =IF(S38<>"",COUNTIF(AI7:AI56,"=1"),"") -> 0 | U40: =IF(U38<>"",COUNTIF(AQ7:AQ56,"=1"),"") -> 0 | W40: =IF(W38<>"",COUNTIF(AU7:AU56,"=1"),"") ->  | AX40: =IF(AT40<>"",IF(AH40+AP40+AT40=3,1,0),"") ->  | BA40: =COUNTIF(C40:K40,0) -> 0 | BB40: =COUNTIF(C40:K40,1) -> 0 | BD40: 0 | BE40: 0 | BG40: =IF(C40="","",IF(C40=D40,2,0)) ->  | BH40: =IF(E40="","",IF(C40=E40,2,0)) ->  | BI40: =IF(D40="","",IF(D40=E40,2,0)) ->  | BJ40: 0 | BK40: =IF(G40="","",IF(F40=G40,2,0)) ->  | BL40: =IF(H40="","",IF(F40=H40,2,0)) ->  | BM40: =IF(H40="","",IF(G40=H40,2,0)) ->  | BN40: 0 | BO40: =IF(J40="","",IF(I40=J40,2,0)) ->  | BP40: =IF(K40="","",IF(I40=K40,2,0)) ->  | BQ40: =IF(K40="","",IF(J40=K40,2,0)) ->  | BR40: 0 | BS40: 0 | BT40: =IF(C40="","",IF(C40=$L40,2,0)) ->  | BU40: =IF(D40="","",IF(D40=$L40,2,0)) ->  | BV40: =IF(E40="","",IF(E40=$L40,2,0)) ->  | BW40: =IF(F40="","",IF(F40=$L40,2,0)) ->  | BX40: =IF(G40="","",IF(G40=$L40,2,0)) ->  | BY40: =IF(H40="","",IF(H40=$L40,2,0)) ->  | BZ40: =IF(I40="","",IF(I40=$L40,2,0)) ->  | CA40: =IF(J40="","",IF(J40=$L40,2,0)) ->  | CB40: =IF(K40="","",IF(K40=$L40,2,0)) ->  | CG40: 34 | CH40: A | CI40: 1 | CJ40: 34
B41: 34 | C41: =IF(Eingabe!C41="","",Eingabe!C41) ->  | D41: =IF(Eingabe!D41="","",Eingabe!D41) ->  | E41: =IF(Eingabe!E41="","",Eingabe!E41) ->  | F41: =IF(Eingabe!F41="","",Eingabe!F41) ->  | G41: =IF(Eingabe!G41="","",Eingabe!G41) ->  | H41: =IF(Eingabe!H41="","",Eingabe!H41) ->  | L41: =IF(Eingabe!I41="","",Eingabe!I41) ->  | P41: False Negative (*6) | S41: =IF(S38<>"",COUNTIF(AI7:AI56,"=0"),"") -> 0 | U41: =IF(U38<>"",COUNTIF(AQ7:AQ56,"=0"),"") -> 0 | W41: =IF(W38<>"",COUNTIF(AU7:AU56,"=0"),"") ->  | BA41: 0 | BB41: 0 | BD41: 0 | BE41: 0 | BJ41: 0 | BN41: 0 | BR41: 0 | BS41: 0 | CG41: 35 | CH41: A | CI41: 1 | CJ41: 35
B42: 35 | C42: =IF(Eingabe!C42="","",Eingabe!C42) ->  | D42: =IF(Eingabe!D42="","",Eingabe!D42) ->  | E42: =IF(Eingabe!E42="","",Eingabe!E42) ->  | F42: =IF(Eingabe!F42="","",Eingabe!F42) ->  | G42: =IF(Eingabe!G42="","",Eingabe!G42) ->  | H42: =IF(Eingabe!H42="","",Eingabe!H42) ->  | L42: =IF(Eingabe!I42="","",Eingabe!I42) ->  | P42: Mixed | S42: =IF(S38<>"",S38-S39-S40-S41,"") -> 5 | U42: =IF(U38<>"",U38-U39-U40-U41,"") -> 4 | W42: =IF(W38<>"",W38-W39-W40-W41,"") ->  | BA42: 0 | BB42: 0 | BD42: 0 | BE42: 0 | BJ42: 0 | BN42: 0 | BR42: 0 | BS42: 0 | CG42: 36 | CH42: A | CI42: 1 | CJ42: 36
B43: 36 | C43: =IF(Eingabe!C43="","",Eingabe!C43) ->  | D43: =IF(Eingabe!D43="","",Eingabe!D43) ->  | E43: =IF(Eingabe!E43="","",Eingabe!E43) ->  | F43: =IF(Eingabe!F43="","",Eingabe!F43) ->  | G43: =IF(Eingabe!G43="","",Eingabe!G43) ->  | H43: =IF(Eingabe!H43="","",Eingabe!H43) ->  | L43: =IF(Eingabe!I43="","",Eingabe!I43) ->  | P43: 95% upper CI (*7) | S43: =IF(S39<>"",IF(S38=S39,1,(2*(S39+1)*FINV(0.025,2*(S39+1),2*(S38-S39)))/(2*(S38-S39)+2*(S39+1)*FINV(0.025,2*(S39+1),2*(S38-S39)))),"") -> 0.9435783035 | U43: =IF(U39<>"",IF(U38=U39,1,(2*(U39+1)*FINV(0.025,2*(U39+1),2*(U38-U39)))/(2*(U38-U39)+2*(U39+1)*FINV(0.025,2*(U39+1),2*(U38-U39)))),"") -> 0.9624465037 | W43: =IF(W39<>"",IF(W38=W39,1,(2*(W39+1)*FINV(0.025,2*(W39+1),2*(W38-W39)))/(2*(W38-W39)+2*(W39+1)*FINV(0.025,2*(W39+1),2*(W38-W39)))),"") ->  | Y43: =IF(Y39<>"",IF(Y38=Y39,1,(2*(Y39+1)*FINV(0.025,2*(Y39+1),2*(Y38-Y39)))/(2*(Y38-Y39)+2*(Y39+1)*FINV(0.025,2*(Y39+1),2*(Y38-Y39)))),"") -> 0.1157033082 | BA43: 0 | BB43: 0 | BD43: 0 | BE43: 0 | BJ43: 0 | BN43: 0 | BR43: 0 | BS43: 0 | CG43: 37 | CH43: A | CI43: 1 | CJ43: 37
B44: 37 | C44: =IF(Eingabe!C44="","",Eingabe!C44) ->  | D44: =IF(Eingabe!D44="","",Eingabe!D44) ->  | E44: =IF(Eingabe!E44="","",Eingabe!E44) ->  | F44: =IF(Eingabe!F44="","",Eingabe!F44) ->  | G44: =IF(Eingabe!G44="","",Eingabe!G44) ->  | H44: =IF(Eingabe!H44="","",Eingabe!H44) ->  | L44: =IF(Eingabe!I44="","",Eingabe!I44) ->  | P44: Ergebnis | S44: =IF(S38<>"",S39/S38,"") -> 0.8333333333 | U44: =IF(U38<>"",U39/U38,"") -> 0.8666666667 | W44: =IF(W38<>"",W39/W38,"") ->  | Y44: =IF(Y38<>"",Y39/Y38,"") -> 0 | BA44: 0 | BB44: 0 | BD44: 0 | BE44: 0 | BJ44: 0 | BN44: 0 | BR44: 0 | BS44: 0 | CG44: 38 | CH44: A | CI44: 1 | CJ44: 38
B45: 38 | C45: =IF(Eingabe!C45="","",Eingabe!C45) ->  | D45: =IF(Eingabe!D45="","",Eingabe!D45) ->  | E45: =IF(Eingabe!E45="","",Eingabe!E45) ->  | F45: =IF(Eingabe!F45="","",Eingabe!F45) ->  | G45: =IF(Eingabe!G45="","",Eingabe!G45) ->  | H45: =IF(Eingabe!H45="","",Eingabe!H45) ->  | L45: =IF(Eingabe!I45="","",Eingabe!I45) ->  | P45: 95% lower CI (*7) | S45: =IF(S39<>"",IF(S39=0,0,(2*S39*FINV(0.975,2*S39,2*(S38-S39+1)))/(2*(S38-S39+1)+2*S39*FINV(0.975,2*S39,2*(S38-S39+1)))),"") -> 0.6527883012 | U45: =IF(U39<>"",IF(S39=0,0,(2*U39*FINV(0.975,2*U39,2*(U38-U39+1)))/(2*(U38-U39+1)+2*U39*FINV(0.975,2*U39,2*(U38-U39+1)))),"") -> 0.6927816497 | W45: =IF(W39<>"",IF(S39=0,0,(2*W39*FINV(0.975,2*W39,2*(W38-W39+1)))/(2*(W38-W39+1)+2*W39*FINV(0.975,2*W39,2*(W38-W39+1)))),"") ->  | Y45: =IF(Y39<>"",IF(S39=0,0,(2*Y39*FINV(0.975,2*Y39,2*(Y38-Y39+1)))/(2*(Y38-Y39+1)+2*Y39*FINV(0.975,2*Y39,2*(Y38-Y39+1)))),"") ->  | BA45: 0 | BB45: 0 | BD45: 0 | BE45: 0 | BJ45: 0 | BN45: 0 | BR45: 0 | BS45: 0 | CG45: 39 | CH45: A | CI45: 1 | CJ45: 39
B46: 39 | C46: =IF(Eingabe!C46="","",Eingabe!C46) ->  | D46: =IF(Eingabe!D46="","",Eingabe!D46) ->  | E46: =IF(Eingabe!E46="","",Eingabe!E46) ->  | F46: =IF(Eingabe!F46="","",Eingabe!F46) ->  | G46: =IF(Eingabe!G46="","",Eingabe!G46) ->  | H46: =IF(Eingabe!H46="","",Eingabe!H46) ->  | L46: =IF(Eingabe!I46="","",Eingabe!I46) ->  | P46: Fleiss Kappa | S46: =BT74 -> 0.8726402189 | U46: =BW74 -> 0.8941798942 | W46: =BZ74 ->  | Y46: =BT75 ->  | BA46: 0 | BB46: 0 | BD46: 0 | BE46: 0 | BJ46: 0 | BN46: 0 | BR46: 0 | BS46: 0 | CG46: 40 | CH46: A | CI46: 1 | CJ46: 40
B47: 40 | C47: =IF(Eingabe!C47="","",Eingabe!C47) ->  | D47: =IF(Eingabe!D47="","",Eingabe!D47) ->  | E47: =IF(Eingabe!E47="","",Eingabe!E47) ->  | F47: =IF(Eingabe!F47="","",Eingabe!F47) ->  | G47: =IF(Eingabe!G47="","",Eingabe!G47) ->  | H47: =IF(Eingabe!H47="","",Eingabe!H47) ->  | L47: =IF(Eingabe!I47="","",Eingabe!I47) ->  | BA47: 0 | BB47: 0 | BD47: 0 | BE47: 0 | BJ47: 0 | BN47: 0 | BR47: 0 | BS47: 0 | CG47: 41 | CH47: A | CI47: 1 | CJ47: 41
B48: =B47+1 -> 41 | C48: =IF(Eingabe!C48="","",Eingabe!C48) ->  | D48: =IF(Eingabe!D48="","",Eingabe!D48) ->  | E48: =IF(Eingabe!E48="","",Eingabe!E48) ->  | F48: =IF(Eingabe!F48="","",Eingabe!F48) ->  | G48: =IF(Eingabe!G48="","",Eingabe!G48) ->  | H48: =IF(Eingabe!H48="","",Eingabe!H48) ->  | L48: =IF(Eingabe!I48="","",Eingabe!I48) ->  | P48: Anmerkungen: | BA48: 0 | BB48: 0 | BD48: 0 | BE48: 0 | BJ48: 0 | BN48: 0 | BR48: 0 | BS48: 0 | CG48: 42 | CH48: A | CI48: 1 | CJ48: 42
B49: =B48+1 -> 42 | C49: =IF(Eingabe!C49="","",Eingabe!C49) ->  | D49: =IF(Eingabe!D49="","",Eingabe!D49) ->  | E49: =IF(Eingabe!E49="","",Eingabe!E49) ->  | F49: =IF(Eingabe!F49="","",Eingabe!F49) ->  | G49: =IF(Eingabe!G49="","",Eingabe!G49) ->  | H49: =IF(Eingabe!H49="","",Eingabe!H49) ->  | L49: =IF(Eingabe!I49="","",Eingabe!I49) ->  | BA49: 0 | BB49: 0 | BD49: 0 | BE49: 0 | BJ49: 0 | BN49: 0 | BR49: 0 | BS49: 0 | CG49: 43 | CH49: A | CI49: 1 | CJ49: 43
B50: 43 | C50: =IF(Eingabe!C50="","",Eingabe!C50) ->  | D50: =IF(Eingabe!D50="","",Eingabe!D50) ->  | E50: =IF(Eingabe!E50="","",Eingabe!E50) ->  | F50: =IF(Eingabe!F50="","",Eingabe!F50) ->  | G50: =IF(Eingabe!G50="","",Eingabe!G50) ->  | H50: =IF(Eingabe!H50="","",Eingabe!H50) ->  | L50: =IF(Eingabe!I50="","",Eingabe!I50) ->  | BA50: 0 | BB50: 0 | BD50: 0 | BE50: 0 | BJ50: 0 | BN50: 0 | BR50: 0 | BS50: 0 | CG50: 44 | CH50: A | CI50: 1 | CJ50: 44
B51: 44 | C51: =IF(Eingabe!C51="","",Eingabe!C51) ->  | D51: =IF(Eingabe!D51="","",Eingabe!D51) ->  | E51: =IF(Eingabe!E51="","",Eingabe!E51) ->  | F51: =IF(Eingabe!F51="","",Eingabe!F51) ->  | G51: =IF(Eingabe!G51="","",Eingabe!G51) ->  | H51: =IF(Eingabe!H51="","",Eingabe!H51) ->  | L51: =IF(Eingabe!I51="","",Eingabe!I51) ->  | BA51: 0 | BB51: 0 | BD51: 0 | BE51: 0 | BJ51: 0 | BN51: 0 | BR51: 0 | BS51: 0 | CG51: 45 | CH51: A | CI51: 1 | CJ51: 45
B52: 45 | C52: =IF(Eingabe!C52="","",Eingabe!C52) ->  | D52: =IF(Eingabe!D52="","",Eingabe!D52) ->  | E52: =IF(Eingabe!E52="","",Eingabe!E52) ->  | F52: =IF(Eingabe!F52="","",Eingabe!F52) ->  | G52: =IF(Eingabe!G52="","",Eingabe!G52) ->  | H52: =IF(Eingabe!H52="","",Eingabe!H52) ->  | L52: =IF(Eingabe!I52="","",Eingabe!I52) ->  | BA52: 0 | BB52: 0 | BD52: 0 | BE52: 0 | BJ52: 0 | BN52: 0 | BR52: 0 | BS52: 0 | CG52: 46 | CH52: A | CI52: 1 | CJ52: 46
B53: 46 | C53: =IF(Eingabe!C53="","",Eingabe!C53) ->  | D53: =IF(Eingabe!D53="","",Eingabe!D53) ->  | E53: =IF(Eingabe!E53="","",Eingabe!E53) ->  | F53: =IF(Eingabe!F53="","",Eingabe!F53) ->  | G53: =IF(Eingabe!G53="","",Eingabe!G53) ->  | H53: =IF(Eingabe!H53="","",Eingabe!H53) ->  | L53: =IF(Eingabe!I53="","",Eingabe!I53) ->  | BA53: 0 | BB53: 0 | BD53: 0 | BE53: 0 | BJ53: 0 | BN53: 0 | BR53: 0 | BS53: 0 | CG53: 47 | CH53: A | CI53: 1 | CJ53: 47
B54: 47 | C54: =IF(Eingabe!C54="","",Eingabe!C54) ->  | D54: =IF(Eingabe!D54="","",Eingabe!D54) ->  | E54: =IF(Eingabe!E54="","",Eingabe!E54) ->  | F54: =IF(Eingabe!F54="","",Eingabe!F54) ->  | G54: =IF(Eingabe!G54="","",Eingabe!G54) ->  | H54: =IF(Eingabe!H54="","",Eingabe!H54) ->  | L54: =IF(Eingabe!I54="","",Eingabe!I54) ->  | BA54: 0 | BB54: 0 | BD54: 0 | BE54: 0 | BJ54: 0 | BN54: 0 | BR54: 0 | BS54: 0 | CG54: 48 | CH54: A | CI54: 1 | CJ54: 48
B55: 48 | C55: =IF(Eingabe!C55="","",Eingabe!C55) ->  | D55: =IF(Eingabe!D55="","",Eingabe!D55) ->  | E55: =IF(Eingabe!E55="","",Eingabe!E55) ->  | F55: =IF(Eingabe!F55="","",Eingabe!F55) ->  | G55: =IF(Eingabe!G55="","",Eingabe!G55) ->  | H55: =IF(Eingabe!H55="","",Eingabe!H55) ->  | L55: =IF(Eingabe!I55="","",Eingabe!I55) ->  | BA55: 0 | BB55: 0 | BD55: 0 | BE55: 0 | BJ55: 0 | BN55: 0 | BR55: 0 | BS55: 0 | CG55: 49 | CH55: A | CI55: 1 | CJ55: 49
B56: 49 | C56: =IF(Eingabe!C56="","",Eingabe!C56) ->  | D56: =IF(Eingabe!D56="","",Eingabe!D56) ->  | E56: =IF(Eingabe!E56="","",Eingabe!E56) ->  | F56: =IF(Eingabe!F56="","",Eingabe!F56) ->  | G56: =IF(Eingabe!G56="","",Eingabe!G56) ->  | H56: =IF(Eingabe!H56="","",Eingabe!H56) ->  | L56: =IF(Eingabe!I56="","",Eingabe!I56) ->  | BA56: 0 | BB56: 0 | BD56: 0 | BE56: 0 | BJ56: 0 | BN56: 0 | BR56: 0 | BS56: 0 | CG56: 50 | CH56: A | CI56: 1 | CJ56: 50
B57: 50 | C57: =IF(Eingabe!C57="","",Eingabe!C57) ->  | D57: =IF(Eingabe!D57="","",Eingabe!D57) ->  | E57: =IF(Eingabe!E57="","",Eingabe!E57) ->  | F57: =IF(Eingabe!F57="","",Eingabe!F57) ->  | G57: =IF(Eingabe!G57="","",Eingabe!G57) ->  | H57: =IF(Eingabe!H57="","",Eingabe!H57) ->  | L57: =IF(Eingabe!I57="","",Eingabe!I57) ->  | BA57: 0 | BB57: 0 | BD57: 0 | BE57: 0 | BJ57: 0 | BN57: 0 | BR57: 0 | BS57: 0 | CG57: 51 | CH57: A | CI57: 2 | CJ57: 1 | CK57: =D8 -> 1 | CL57: =L8 -> 1
AZ58: Summe | BA58: =SUM(BA8:BA57) -> 55 | BB58: =SUM(BB8:BB57) -> 125 | BD58: =SUM(BD8:BD57) -> 236 | BE58: =SUM(BE8:BE57) -> 586 | BJ58: =SUM(BJ8:BJ57) -> 160 | BN58: =SUM(BN8:BN57) -> 164 | BR58: =SUM(BR8:BR57) -> 0 | BS58: =SUM(BS8:BS57) -> 822 | BT58: =SUM(BT8:BT57) -> 60 | BU58: 58 | BV58: 52 | BW58: 60 | BX58: 56 | BY58: 56 | BZ58: 0 | CA58: 0 | CB58: 0 | CG58: 52 | CH58: A | CI58: 2 | CJ58: 2 | CK58: =D9 -> 1 | CL58: =L9 -> 1
BG59: =COUNT(BG8:BG57)*2 -> 60 | BH59: =COUNT(BH8:BH57)*2 -> 60 | BI59: =COUNT(BI8:BI57)*2 -> 60 | BJ59: =SUM(BG59:BI59) -> 180 | BK59: =COUNT(BK8:BK57)*2 -> 60 | BL59: 60 | BM59: 60 | BN59: =SUM(BK59:BM59) -> 180 | BO59: 0 | BP59: 0 | BQ59: 0 | BR59: =SUM(BO59:BQ59) -> 0 | BS59: =BD68 -> 900 | BT59: =COUNT(BT8:BT57)*2 -> 60 | BU59: =COUNT(BU8:BU57)*2 -> 60 | BV59: 60 | BW59: 60 | BX59: 60 | BY59: 60 | BZ59: 0 | CA59: 0 | CB59: 0 | CG59: 53 | CH59: A | CI59: 2 | CJ59: 3 | CK59: 0 | CL59: 0
AG60: A | AI60: B | AO60: C | BA60: =BA58+BB58 -> 180 | BD60: =BD58+BE58 -> 822 | BJ60: =BJ58/BJ59 -> 0.8888888889 | BN60: =BN58/BN59 -> 0.9111111111 | BR60: =BR58/BR59 ->  | BS60: =BS58/BS59 -> 0.9133333333 | BT60: =BT58/BT59 -> 1 | BU60: 0.9666666667 | BV60: =IF(BV59=0,"",BV58/BV59) -> 0.8666666667 | BW60: 1 | BX60: 0.9333333333 | BY60: =IF(BY59=0,"",BY58/BY59) -> 0.9333333333 | CB60: =IF(CB59=0,"",CB58/CB59) ->  | CG60: 54 | CH60: A | CI60: 2 | CJ60: 4 | CK60: 0 | CL60: 0
AG61: =IF(S28<>"",S30-S31,"") -> 0.1102449702 | AI61: =IF(U28<>"",U30-U31,"") -> 0.09577983699 | AO61: =IF(W28<>"",W30-W31,"") ->  | BJ61: =COUNTIF($C$8:$E$57,0) -> 28 | BN61: =COUNTIF($F$8:$H$57,0) -> 27 | BR61: =COUNTIF($I$8:$K$57,0) -> 0 | BS61: =COUNTIF($C$8:$K$57,0) -> 55 | BT61: =COUNTIF(C$8:C$57,0)+COUNTIF($L$8:$L$57,0) -> 18 | BU61: 17 | BV61: 20 | BW61: 18 | BX61: 18 | BY61: 18 | BZ61: 9 | CA61: 9 | CB61: 9 | CG61: 55 | CH61: A | CI61: 2 | CJ61: 5 | CK61: 0 | CL61: 0
AG62: =IF(S28<>"",S31-S32,"") -> 0.1805450322 | AI62: =IF(U28<>"",U31-U32,"") -> 0.1738850169 | AO62: =IF(W28<>"",W31-W32,"") ->  | BA62: =BA58/$BA$60 -> 0.3055555556 | BB62: =BB58/$BA$60 -> 0.6944444444 | BD62: =BA8+BB8 -> 6 | BJ62: =COUNTIF($C$8:$E$57,1) -> 62 | BN62: =COUNTIF($F$8:$H$57,1) -> 63 | BR62: =COUNTIF($I$8:$K$57,1) -> 0 | BS62: =COUNTIF($C$8:$K$57,1) -> 125 | BT62: =COUNTIF(C$8:C$57,1)+COUNTIF($L$8:$L$57,1) -> 42 | BU62: 43 | BV62: 40 | BW62: 42 | BX62: 42 | BY62: 42 | BZ62: 21 | CA62: 21 | CB62: 21 | CG62: 56 | CH62: A | CI62: 2 | CJ62: 6 | CK62: 1 | CL62: 1
AG63: =IF(S28<>"",S43-S44,"") -> 0.1102449702 | AI63: =IF(U28<>"",U43-U44,"") -> 0.09577983699 | AO63: =IF(W28<>"",W43-W44,"") ->  | CG63: 57 | CH63: A | CI63: 2 | CJ63: 7 | CK63: 1 | CL63: 1
AG64: =IF(S28<>"",S44-S45,"") -> 0.1805450322 | AI64: =IF(U28<>"",U44-U45,"") -> 0.1738850169 | AO64: =IF(W28<>"",W44-W45,"") ->  | CG64: 58 | CH64: A | CI64: 2 | CJ64: 8 | CK64: 1 | CL64: 1
BJ65: =BJ62+BJ61 -> 90 | BN65: =BN62+BN61 -> 90 | BR65: =BR62+BR61 -> 0 | BS65: =BS62+BS61 -> 180 | BT65: =BT62+BT61 -> 60 | BU65: =BU62+BU61 -> 60 | BV65: 60 | BW65: 60 | BX65: 60 | BY65: 60 | BZ65: 30 | CA65: 30 | CB65: 30 | CG65: 59 | CH65: A | CI65: 2 | CJ65: 9 | CK65: 0 | CL65: 0
BA66: =BA62*BA62 -> 0.09336419753 | BB66: =BB62*BB62 -> 0.4822530864 | BD66: =BD62*(BD62-1) -> 30 | BJ66: =BJ61/BJ65 -> 0.3111111111 | BN66: =BN61/BN65 -> 0.3 | BR66: =BR61/BR65 ->  | BS66: =BS61/BS65 -> 0.3055555556 | BT66: =BT61/BT65 -> 0.3 | BU66: 0.2833333333 | BV66: 0.3333333333 | BW66: 0.3 | BX66: 0.3 | BY66: 0.3 | BZ66: 0.3 | CA66: 0.3 | CB66: 0.3 | CG66: 60 | CH66: A | CI66: 2 | CJ66: 10 | CK66: 1 | CL66: 1
BJ67: =BJ62/BJ65 -> 0.6888888889 | BN67: =BN62/BN65 -> 0.7 | BR67: =BR62/BR65 ->  | BS67: =BS62/BS65 -> 0.6944444444 | BT67: =BT62/BT65 -> 0.7 | BU67: 0.7166666667 | BV67: 0.6666666667 | BW67: 0.7 | BX67: 0.7 | BY67: 0.7 | BZ67: 0.7 | CA67: 0.7 | CB67: 0.7 | CG67: 61 | CH67: A | CI67: 2 | CJ67: 11 | CK67: 1 | CL67: 1
BD68: =BD66*S28 -> 900 | BJ68: =BJ66*BJ66 -> 0.09679012346 | BN68: =BN66*BN66 -> 0.09 | BR68: =BR66*BR66 ->  | BS68: =BS66*BS66 -> 0.09336419753 | BT68: =BT66*BT66 -> 0.09 | BU68: 0.08027777778 | BV68: 0.1111111111 | BW68: 0.09 | BX68: 0.09 | BY68: 0.09 | BZ68: 0.09 | CA68: 0.09 | CB68: 0.09 | CG68: 62 | CH68: A | CI68: 2 | CJ68: 12 | CK68: 0 | CL68: 0
BJ69: =BJ67*BJ67 -> 0.4745679012 | BN69: =BN67*BN67 -> 0.49 | BR69: =BR67*BR67 ->  | BS69: =BS67*BS67 -> 0.4822530864 | BT69: 0.49 | BU69: 0.5136111111 | BV69: 0.4444444444 | BW69: 0.49 | BX69: 0.49 | BY69: 0.49 | BZ69: 0.49 | CA69: 0.49 | CB69: 0.49 | CG69: 63 | CH69: A | CI69: 2 | CJ69: 13 | CK69: 1 | CL69: 1
CG70: 64 | CH70: A | CI70: 2 | CJ70: 14 | CK70: 1 | CL70: 1
BA71: =BA66+BB66 -> 0.575617284 | BD71: =BD60/BD68 -> 0.9133333333 | BF71: Pexp | BJ71: =BJ69+BJ68 -> 0.5713580247 | BN71: =BN69+BN68 -> 0.58 | BR71: =BR69+BR68 ->  | BS71: =BS69+BS68 -> 0.575617284 | BT71: =BT69+BT68 -> 0.58 | BU71: 0.5938888889 | BV71: 0.5555555556 | BW71: 0.58 | BX71: 0.58 | BY71: 0.58 | BZ71: 0.58 | CA71: 0.58 | CB71: 0.58 | CG71: 65 | CH71: A | CI71: 2 | CJ71: 15 | CK71: 1 | CL71: 1
BJ72: Within Prüfer | CG72: 66 | CH72: A | CI72: 2 | CJ72: 16 | CK72: 1 | CL72: 1
BC73: between | BD73: =(BD71-BA71)/(1-BA71) -> 0.7957818182 | BJ73: =IF(BJ60=1,1,(BJ60-BJ71)/(1-BJ71)) -> 0.7407834101 | BN73: =IF(BN60=1,1,(BN60-BN71)/(1-BN71)) -> 0.7883597884 | BR73: =IF(BR60=1,1,(BR60-BR71)/(1-BR71)) ->  | BS73: 0.7957818182 | BT73: 1 | BU73: 0.9179206566 | BV73: 0.7 | BW73: 1 | BX73: 0.8412698413 | BY73: 0.8412698413 | CG73: 67 | CH73: A | CI73: 2 | CJ73: 17 | CK73: 1 | CL73: 1
BT74: =AVERAGE(BT73:BV73) -> 0.8726402189 | BW74: =AVERAGE(BW73:BY73) -> 0.8941798942 | BZ74: =AVERAGE(BZ73:CB73) ->  | CG74: 68 | CH74: A | CI74: 2 | CJ74: 18 | CK74: 1 | CL74: 1
BT75: =AVERAGE(BT73:CB73) ->  | CG75: 69 | CH75: A | CI75: 2 | CJ75: 19 | CK75: 1 | CL75: 1
CG76: 70 | CH76: A | CI76: 2 | CJ76: 20 | CK76: 1 | CL76: 1
CG77: 71 | CH77: A | CI77: 2 | CJ77: 21 | CK77: 1 | CL77: 1
CG78: 72 | CH78: A | CI78: 2 | CJ78: 22 | CK78: 0 | CL78: 0
CG79: 73 | CH79: A | CI79: 2 | CJ79: 23 | CK79: 1 | CL79: 1
CG80: 74 | CH80: A | CI80: 2 | CJ80: 24 | CK80: 1 | CL80: 1
CG81: 75 | CH81: A | CI81: 2 | CJ81: 25 | CK81: 0 | CL81: 0
CG82: 76 | CH82: A | CI82: 2 | CJ82: 26 | CK82: 1 | CL82: 0
CG83: 77 | CH83: A | CI83: 2 | CJ83: 27 | CK83: 1 | CL83: 1
CG84: 78 | CH84: A | CI84: 2 | CJ84: 28 | CK84: 1 | CL84: 1
CG85: 79 | CH85: A | CI85: 2 | CJ85: 29 | CK85: 1 | CL85: 1
CG86: 80 | CH86: A | CI86: 2 | CJ86: 30 | CK86: 0 | CL86: 0
CG87: 81 | CH87: A | CI87: 2 | CJ87: 31
CG88: 82 | CH88: A | CI88: 2 | CJ88: 32
CG89: 83 | CH89: A | CI89: 2 | CJ89: 33
CG90: 84 | CH90: A | CI90: 2 | CJ90: 34
CG91: 85 | CH91: A | CI91: 2 | CJ91: 35
CG92: 86 | CH92: A | CI92: 2 | CJ92: 36
CG93: 87 | CH93: A | CI93: 2 | CJ93: 37
CG94: 88 | CH94: A | CI94: 2 | CJ94: 38
CG95: 89 | CH95: A | CI95: 2 | CJ95: 39
CG96: 90 | CH96: A | CI96: 2 | CJ96: 40
CG97: 91 | CH97: A | CI97: 2 | CJ97: 41
CG98: 92 | CH98: A | CI98: 2 | CJ98: 42
CG99: 93 | CH99: A | CI99: 2 | CJ99: 43
CG100: 94 | CH100: A | CI100: 2 | CJ100: 44
CG101: 95 | CH101: A | CI101: 2 | CJ101: 45
CG102: 96 | CH102: A | CI102: 2 | CJ102: 46
CG103: 97 | CH103: A | CI103: 2 | CJ103: 47
CG104: 98 | CH104: A | CI104: 2 | CJ104: 48
CG105: 99 | CH105: A | CI105: 2 | CJ105: 49
CG106: 100 | CH106: A | CI106: 2 | CJ106: 50
CG107: 101 | CH107: A | CI107: 3 | CJ107: 1 | CK107: =E8 -> 1 | CL107: =L8 -> 1
CG108: 102 | CH108: A | CI108: 3 | CJ108: 2 | CK108: =E9 -> 1 | CL108: =L9 -> 1
CG109: 103 | CH109: A | CI109: 3 | CJ109: 3 | CK109: 0 | CL109: 0
CG110: 104 | CH110: A | CI110: 3 | CJ110: 4 | CK110: 0 | CL110: 0
CG111: 105 | CH111: A | CI111: 3 | CJ111: 5 | CK111: 0 | CL111: 0
CG112: 106 | CH112: A | CI112: 3 | CJ112: 6 | CK112: 0 | CL112: 1
CG113: 107 | CH113: A | CI113: 3 | CJ113: 7 | CK113: 1 | CL113: 1
CG114: 108 | CH114: A | CI114: 3 | CJ114: 8 | CK114: 1 | CL114: 1
CG115: 109 | CH115: A | CI115: 3 | CJ115: 9 | CK115: 0 | CL115: 0
CG116: 110 | CH116: A | CI116: 3 | CJ116: 10 | CK116: 1 | CL116: 1
CG117: 111 | CH117: A | CI117: 3 | CJ117: 11 | CK117: 1 | CL117: 1
CG118: 112 | CH118: A | CI118: 3 | CJ118: 12 | CK118: 0 | CL118: 0
CG119: 113 | CH119: A | CI119: 3 | CJ119: 13 | CK119: 1 | CL119: 1
CG120: 114 | CH120: A | CI120: 3 | CJ120: 14 | CK120: 0 | CL120: 1
CG121: 115 | CH121: A | CI121: 3 | CJ121: 15 | CK121: 1 | CL121: 1
CG122: 116 | CH122: A | CI122: 3 | CJ122: 16 | CK122: 1 | CL122: 1
CG123: 117 | CH123: A | CI123: 3 | CJ123: 17 | CK123: 1 | CL123: 1
CG124: 118 | CH124: A | CI124: 3 | CJ124: 18 | CK124: 1 | CL124: 1
CG125: 119 | CH125: A | CI125: 3 | CJ125: 19 | CK125: 1 | CL125: 1
CG126: 120 | CH126: A | CI126: 3 | CJ126: 20 | CK126: 1 | CL126: 1
CG127: 121 | CH127: A | CI127: 3 | CJ127: 21 | CK127: 0 | CL127: 1
CG128: 122 | CH128: A | CI128: 3 | CJ128: 22 | CK128: 1 | CL128: 0
CG129: 123 | CH129: A | CI129: 3 | CJ129: 23 | CK129: 1 | CL129: 1
CG130: 124 | CH130: A | CI130: 3 | CJ130: 24 | CK130: 1 | CL130: 1
CG131: 125 | CH131: A | CI131: 3 | CJ131: 25 | CK131: 0 | CL131: 0
CG132: 126 | CH132: A | CI132: 3 | CJ132: 26 | CK132: 0 | CL132: 0
CG133: 127 | CH133: A | CI133: 3 | CJ133: 27 | CK133: 1 | CL133: 1
CG134: 128 | CH134: A | CI134: 3 | CJ134: 28 | CK134: 1 | CL134: 1
CG135: 129 | CH135: A | CI135: 3 | CJ135: 29 | CK135: 1 | CL135: 1
CG136: 130 | CH136: A | CI136: 3 | CJ136: 30 | CK136: 0 | CL136: 0
CG137: 131 | CH137: A | CI137: 3 | CJ137: 31
CG138: 132 | CH138: A | CI138: 3 | CJ138: 32
CG139: 133 | CH139: A | CI139: 3 | CJ139: 33
CG140: 134 | CH140: A | CI140: 3 | CJ140: 34
CG141: 135 | CH141: A | CI141: 3 | CJ141: 35
CG142: 136 | CH142: A | CI142: 3 | CJ142: 36
CG143: 137 | CH143: A | CI143: 3 | CJ143: 37
CG144: 138 | CH144: A | CI144: 3 | CJ144: 38
CG145: 139 | CH145: A | CI145: 3 | CJ145: 39
CG146: 140 | CH146: A | CI146: 3 | CJ146: 40
CG147: 141 | CH147: A | CI147: 3 | CJ147: 41
CG148: 142 | CH148: A | CI148: 3 | CJ148: 42
CG149: 143 | CH149: A | CI149: 3 | CJ149: 43
CG150: 144 | CH150: A | CI150: 3 | CJ150: 44
CG151: 145 | CH151: A | CI151: 3 | CJ151: 45
CG152: 146 | CH152: A | CI152: 3 | CJ152: 46
CG153: 147 | CH153: A | CI153: 3 | CJ153: 47
CG154: 148 | CH154: A | CI154: 3 | CJ154: 48
CG155: 149 | CH155: A | CI155: 3 | CJ155: 49
CG156: 150 | CH156: A | CI156: 3 | CJ156: 50
CG157: 151 | CH157: A | CI157: 4 | CJ157: 1 | CK157: =F8 -> 1 | CL157: =L8 -> 1
CG158: 152 | CH158: A | CI158: 4 | CJ158: 2 | CK158: =F9 -> 1 | CL158: =L9 -> 1
CG159: 153 | CH159: A | CI159: 4 | CJ159: 3 | CK159: 0 | CL159: 0
CG160: 154 | CH160: A | CI160: 4 | CJ160: 4 | CK160: 0 | CL160: 0
CG161: 155 | CH161: A | CI161: 4 | CJ161: 5 | CK161: 0 | CL161: 0
CG162: 156 | CH162: A | CI162: 4 | CJ162: 6 | CK162: 1 | CL162: 1
CG163: 157 | CH163: A | CI163: 4 | CJ163: 7 | CK163: 1 | CL163: 1
CG164: 158 | CH164: A | CI164: 4 | CJ164: 8 | CK164: 1 | CL164: 1
CG165: 159 | CH165: A | CI165: 4 | CJ165: 9 | CK165: 0 | CL165: 0
CG166: 160 | CH166: A | CI166: 4 | CJ166: 10 | CK166: 1 | CL166: 1
CG167: 161 | CH167: A | CI167: 4 | CJ167: 11 | CK167: 1 | CL167: 1
CG168: 162 | CH168: A | CI168: 4 | CJ168: 12 | CK168: 0 | CL168: 0
CG169: 163 | CH169: A | CI169: 4 | CJ169: 13 | CK169: 1 | CL169: 1
CG170: 164 | CH170: A | CI170: 4 | CJ170: 14 | CK170: 1 | CL170: 1
CG171: 165 | CH171: A | CI171: 4 | CJ171: 15 | CK171: 1 | CL171: 1
CG172: 166 | CH172: A | CI172: 4 | CJ172: 16 | CK172: 1 | CL172: 1
CG173: 167 | CH173: A | CI173: 4 | CJ173: 17 | CK173: 1 | CL173: 1
CG174: 168 | CH174: A | CI174: 4 | CJ174: 18 | CK174: 1 | CL174: 1
CG175: 169 | CH175: A | CI175: 4 | CJ175: 19 | CK175: 1 | CL175: 1
CG176: 170 | CH176: A | CI176: 4 | CJ176: 20 | CK176: 1 | CL176: 1
CG177: 171 | CH177: A | CI177: 4 | CJ177: 21 | CK177: 1 | CL177: 1
CG178: 172 | CH178: A | CI178: 4 | CJ178: 22 | CK178: 0 | CL178: 0
CG179: 173 | CH179: A | CI179: 4 | CJ179: 23 | CK179: 1 | CL179: 1
CG180: 174 | CH180: A | CI180: 4 | CJ180: 24 | CK180: 1 | CL180: 1
CG181: 175 | CH181: A | CI181: 4 | CJ181: 25 | CK181: 0 | CL181: 0
CG182: 176 | CH182: A | CI182: 4 | CJ182: 26 | CK182: 0 | CL182: 0
CG183: 177 | CH183: A | CI183: 4 | CJ183: 27 | CK183: 1 | CL183: 1
CG184: 178 | CH184: A | CI184: 4 | CJ184: 28 | CK184: 1 | CL184: 1
CG185: 179 | CH185: A | CI185: 4 | CJ185: 29 | CK185: 1 | CL185: 1
CG186: 180 | CH186: A | CI186: 4 | CJ186: 30 | CK186: 0 | CL186: 0
CG187: 181 | CH187: A | CI187: 4 | CJ187: 31
CG188: 182 | CH188: A | CI188: 4 | CJ188: 32
CG189: 183 | CH189: A | CI189: 4 | CJ189: 33
CG190: 184 | CH190: A | CI190: 4 | CJ190: 34
CG191: 185 | CH191: A | CI191: 4 | CJ191: 35
CG192: 186 | CH192: A | CI192: 4 | CJ192: 36
CG193: 187 | CH193: A | CI193: 4 | CJ193: 37
CG194: 188 | CH194: A | CI194: 4 | CJ194: 38
CG195: 189 | CH195: A | CI195: 4 | CJ195: 39
CG196: 190 | CH196: A | CI196: 4 | CJ196: 40
CG197: 191 | CH197: A | CI197: 4 | CJ197: 41
CG198: 192 | CH198: A | CI198: 4 | CJ198: 42
CG199: 193 | CH199: A | CI199: 4 | CJ199: 43
CG200: 194 | CH200: A | CI200: 4 | CJ200: 44
CG201: 195 | CH201: A | CI201: 4 | CJ201: 45
... 105 more rows
